{"text_format":"1","workbook":"xlsx","n_sheets":23,"sheets":["Cover Page","Contents","Facility Info","Operational Data","Operational Summary","Perf. Form 1","Energy Form 1","Permit Compliance","Improvements","Public Liasion","CO2 N2O","Residue Quality ","Water","Air (periodic)","Air (CEMS)","HCl","SO2","NOx","TOC","Particulates","CO 0.5 hourly","CO 95% 10 min","NH3"],"not_rendered":{"charts":8,"images":3,"macros":1,"external_links":0,"defined_names":23,"comments":0,"pivot_tables":0},"unopened":[],"bounds":{"document_bytes":16777216,"sheet_cells":100000,"rows_first":2000,"rows_last":500,"rows_between":2000,"halvings":0,"cell_chars":16384,"cell_head_chars":4096},"cells_cut":0,"cells_raw":0,"read":"whole","date_system":"1900"}

{"sheet":"Cover Page","index":0,"n_rows":53,"n_cols":14,"rows_kept":53,"cut":false,"hidden":false,"merged":[[48,2,48,3],[48,6,48,8],[52,2,52,3],[36,1,36,8],[40,2,40,8],[42,2,42,4],[44,2,44,4],[46,2,46,3],[46,6,46,8],[13,13,18,15],[34,1,34,8],[0,3,5,6],[7,1,23,8],[28,1,28,8],[30,1,30,8],[32,1,32,8]]}
[null,null,null,"Add company logo"]
[null,null,null,null,null,null,null,null,null,null,null,null,null,"Version 23.4a (for incinerators) - 15/11/2023"]
[]
[null,null,null,null,null,null,null,null,null,null,null,null,null,"Note that there is another version of this template available for co-incinerators"]
[]
[]
[]
[null,"Add photo"]
[]
[]
[]
[]
[null,null,null,null,null,null,null,null,null,null,null,null,null,"Notes:"]
[null,null,null,null,null,null,null,null,null,null,null,null,null,"This template may require adjustments by individual operators to meet specific reporting requirements as defined in the site Permit(s)"]
[]
[]
[]
[]
[]
[]
[]
[]
[]
[]
[]
[]
[]
[]
[null,"Annual Performance Report 2023"]
[]
[null,"Permit EPR/WP3239SJ"]
[]
[null,"Tyseley Energy from Waste Plant"]
[]
[]
[]
[null,"Veolia ES Birmingham Limited"]
[]
[null,"Year:",2023]
[]
[null,"Address:","James Road, Tyseley, Birmingham, B11 2BA"]
[]
[null,"Tel: ","0203 9567 3740"]
[]
[null,"Email: ","christine.skaramaga@veolia.com"]
[]
[null,"Prepared by:","Christine Skaramaga",null,null,"Position:","Senior Environmental Engineer"]
[]
[null,"Approved by:","Scott Francis",null,null,"Position:","Head of ERF Operations & Maintenance North"]
[]
[null,"Version:",1]
[]
[null,"Issue Date:","2024-01-30"]

{"sheet":"Contents","index":1,"n_rows":45,"n_cols":11,"rows_kept":45,"cut":false,"hidden":false,"merged":[[44,0,47,9],[37,1,37,6],[38,1,38,6],[39,1,39,6],[40,1,40,6],[41,1,41,6],[42,1,42,6],[36,1,36,6],[22,1,22,6],[23,1,23,6],[24,1,24,6],[27,1,27,6],[28,1,28,6],[29,1,29,6],[30,1,30,6],[31,1,31,6],[32,1,32,6],[35,1,35,6],[21,1,21,6],[9,1,9,6],[10,1,10,6],[11,1,11,6],[13,1,13,6],[14,1,14,6],[15,1,15,6],[16,1,16,6],[17,1,17,6],[18,1,18,6],[19,1,19,6],[20,1,20,6],[12,1,12,6],[4,10,7,14],[8,1,8,6],[3,1,3,6],[4,1,4,6],[5,1,5,6],[6,1,6,6],[7,1,7,6]]}
[{"$f":"+'Cover Page'!$B$29","v":"Annual Performance Report 2023"},null,null,null,{"$f":"+'Cover Page'!$B$33","v":"Tyseley Energy from Waste Plant"}]
[]
["Contents",null,null,null,null,null,null,null,null,null,"Notes:"]
["Section","Subject",null,null,null,null,null,"Page ",null,null,"Section references and Page nos. to be inserted"]
[null,"Facility Information",null,null,null,null,null,3,null,null,"Sections and Subjects may require adjustment by individual operators to meet specific reporting requirements as defined in the sites Permit(s)"]
[null,"Operational Data",null,null,null,null,null,4]
[null,"Operational Summary",null,null,null,null,null,6]
[null,"Performance Form 1",null,null,null,null,null,7]
[null,"Energy Form 1",null,null,null,null,null,8]
[null,"Permit Compliance",null,null,null,null,null,9]
[null,"Improvements",null,null,null,null,null,10]
[null,"Public Liasion",null,null,null,null,null,11]
[null,"Carbon dioxide and nitrous oxide emissions",null,null,null,null,null,12]
[null,"Residue Quality ",null,null,null,null,null,14]
[null,"Emissions to Water",null,null,null,null,null,15]
[null,"Emissions to Air (periodically monitored)",null,null,null,null,null,16]
[null,"Emissions to Air (continuously monitored)",null,null,null,null,null,20]
[null,"Hydrogen Chloride emissions",null,null,null,null,null,22]
[null,"Sulphur Dioxdie emsissions",null,null,null,null,null,23]
[null,"Oxides of Notrigen emissions",null,null,null,null,null,24]
[null,"Total Organic Carbon emissions",null,null,null,null,null,25]
[null,"Particulate Matter emissions",null,null,null,null,null,26]
[null,"Carbon Monoxide emissions",null,null,null,null,null,28]
[null,"Ammonia emissions",null,null,null,null,null,29]
[]
[]
["Version Control"]
["Section","Information",null,null,null,null,null,"Date"]
[]
[]
[]
[]
[]
[]
["Distribution"]
["Copy","Name, Role",null,null,null,null,null,"No."]
[1,"Sarah Dennis, EA Installations Technical Leader",null,null,null,null,null,1]
[]
[]
[]
[]
[]
[]
[]
["This report is required under the Industrial Emissions Directive’s Article 55(2) requirements on reporting and public information on waste incineration plants and co-incineration plants, which require the operator to produce an annual report on the functioning and monitoring of the plant and make it available to the public. "]

{"sheet":"Facility Info","index":2,"n_rows":22,"n_cols":11,"rows_kept":22,"cut":false,"hidden":false,"merged":[[4,0,17,8],[21,0,53,8],[4,10,13,13],[21,10,30,13]]}
[{"$f":"+'Cover Page'!$B$29","v":"Annual Performance Report 2023"},null,null,null,{"$f":"+'Cover Page'!$B$33","v":"Tyseley Energy from Waste Plant"}]
[]
["Plant Description and Design",null,null,null,null,null,null,null,null,null,"Notes:"]
[]
["The main purpose of the activity carried out at this facility is to incinerate, primarily, Municipal Solid Waste (MSW) as defined by EWC 20 03 01, recovering energy in the form of steam and electricity generating 27 MW for export to the National Grid. \n\nThe permit covers the site and the entire incineration process which includes all incineration lines, waste reception and storage, waste-fuel and air supply systems, boilers, facilities for the treatment of exhaust gases, on-site facilities for handling and storage of residues and operations, recording and monitoring conditions.\n\n",null,null,null,null,null,null,null,null,null,"Include summary of plant design, design capacity, no. of combustion lines, electrical and heat capacity and any other general information that descibes the facility, its location and purpose "]
[]
[]
[]
[]
[]
[]
[]
[]
[]
[]
[]
[]
[]
[]
["Summary of Operational Processes and Procedures"]
[]
["This facility consists of two incineration lines, each capable of processing approximately 23.5 tonnes per hour, which takes approximately 350,000 tonnes of Birmingham’s waste each year but this, is dependent on two factors: actual operating hours and calorific value of the waste being burnt.\n\nThe third incineration line processes clinical waste and other designated hazardous wastes (CWI) at a nominal rate of 600kg/hour.\nAll emissions to air from the two 80m high chimneys are controlled to meet the emission limits included in the Environmental Permit. The flue gases released into the atmosphere are continuously monitored for Particulate Matter (total), TOC, Hydrogen Chloride, Oxides of Nitrogen, Carbon Monoxide, Ammonia,  Sulphur Dioxide, Carbon Dioxide, Nitrous Oxide and flue gas flow.         \nBi-annual check monitoring of this equipment is carried out by approved contractors using indepent extractive sampling methods, at which time emissions of Heavy Metals, Dioxins and other substances are also monitored.\nThe Continious Emissions Monitoring equipment (CEMs) was in service during 2023 for 100% of the plant operating time. This equipment is stringently monitored with routine calibration checks and is standardised to BS EN14181:2004. ",null,null,null,null,null,null,null,null,null,"Include summary of key processes and procedures such as (but not limited to); waste reception, control rooms, grate, bed and bolier, energy & heat  generation, cooling systems, residue management, emission controls, health and safety systems, maintenance"]

{"sheet":"Operational Data","index":3,"n_rows":65,"n_cols":10,"rows_kept":65,"cut":false,"hidden":false,"merged":[[5,9,7,9],[52,0,56,0],[33,1,38,1],[3,1,3,2],[7,1,19,1],[23,1,26,1],[28,1,29,1],[9,9,20,9],[21,9,25,9]]}
[{"$f":"+'Cover Page'!$B$29","v":"Annual Performance Report 2023"},null,null,null,{"$f":"+'Cover Page'!$B$33","v":"Tyseley Energy from Waste Plant"}]
[]
["Operational Data"]
["Plant Size",440500,null,"tonnes pa",null,"MWth",30,"MWe",null,"Notes:"]
["No. of combustion lines",2,null,"No. of Turbines:",null,1,null,null,null,"* - RDF to include SRF "]
[null,null,null,null,null,null,null,null,null,"** - Combusted tonnage = tonnes delivered in period + (tonnes in bunker at start of period – tonnes in bunker at end of period), or equivalent calculation depending on plant type"]
["Waste types received","Unit","Q1","Q2","Q3","Q4","Year Total","%"]
["Household / Local Authority","tonnes",96039.567999999999,80004.004000000015,82434.651000000027,93453.463000000003,{"$f":"SUM(C8:F8)","v":351931.68600000005},{"$f":"IF(G8>0,G8/$G$18,\"-\")","v":0.98079293931501477}]
["Commercial & Industrial ",null,780.29000000000815,332.70729999999458,54.212000000028638,65.445999999996275,{"$f":"SUM(C9:F9)","v":1232.6553000000276},3.435267874258012E-3,null,"*** - CHP plants only"]
["Hazardous ",null,795.66499999999974,594.22400000000005,756.40399999999977,843.27799999999991,2989.5709999999995,8.3315888992755455E-3,null,"**** Availability Definition: 'the availability of a line is to be calculated by the number of hours the line reported Continuously Monitored emission levels to the Regulator through the calendar year divided by the total number of hours in that year. \n\nThe overall plant availability is calculated as the Mean of all lines in the plant. For clarity this includes periods of abnormal operation.'  \n\nRationale: The primary function of an Energy from Waste facility is the disposal of waste. It follows therefore that the availability of a plant is determined by the period of time a facility spends undertaking this activity."]
["Clinical",null,625.61599999999999,491.75400000000002,754.70499999999993,797.64599999999996,2669.7209999999995,7.4402039114517798E-3]
["Waste wood (biomass) ",null,null,null,null,null,0,"-"]
["Refuse Derived Fuel * - H'hold/LA",null,null,null,null,null,{"$f":"SUM(C13:F13)","v":0},"-"]
["Refuse Derived Fuel *  - C&I",null,null,null,null,null,0,"-"]
["Other [Please specify]",null,null,null,null,null,0,"-"]
["Other [Please specify]",null,null,null,null,null,0,"-"]
["Other [Please specify]",null,null,null,null,null,0,"-"]
["Total waste received",null,{"$f":"SUM(C8:C17)","v":98241.138999999996},{"$f":"SUM(D8:D17)","v":81422.689300000013},{"$f":"SUM(E8:E17)","v":83999.972000000053},{"$f":"SUM(F8:F17)","v":95159.832999999999},358823.63330000004]
["Rejected Waste ",null,null,null,null,null,{"$f":"SUM(C19:F19)","v":0},{"$f":"IF(G19>0,G19/$G$18,\"-\")","v":"-"}]
["Unprocessed waste transferred out",null,null,null,null,null,{"$f":"SUM(C20:F20)","v":0},{"$f":"IF(G20>0,G20/$G$18,\"-\")","v":"-"}]
["Total waste combusted **",null,99539.34,73443.100000000006,91086.8,98470.266451692529,{"$f":"SUM(C21:F21)","v":362539.50645169255}]
[null,null,null,null,null,null,null,null,null,"Password for protected cells\nA password has been set to prevent accidental  editing of cells with formulae. \nIf you still need to make an edit for some reason then the password = 1234"]
["Energy Usage / Export","Unit","Q1","Q2","Q3","Q4","Year Total","KWh/te"]
["Power Generated","MWh",57789,38981,18919,50788,{"$f":"SUM(C24:F24)","v":166477},{"$f":"IF(G24>0,G24*1000/$G$21,\"-\")","v":459.19685175657577}]
["Power Exported",null,50512.355039699993,33912.841654399992,16194.904402000006,44086.682978900004,{"$f":"SUM(C25:F25)","v":144706.78407499997},{"$f":"IF(G25>0,G25*1000/$G$21,\"-\")","v":399.14762805107364}]
["Power Used on site",null,{"$f":"C24-C25","v":7276.6449603000074},{"$f":"D24-D25","v":5068.158345600008},2724.0955979999944,6701.3170210999961,{"$f":"SUM(C26:F26)","v":21770.215925000004},{"$f":"IF(G26>0,G26*1000/$G$21,\"-\")","v":60.049223705502094}]
["Power Imported",null,8.2000000000000028,644.38249999999994,2713.1522000000004,0,3365.7347000000004,{"$f":"IF(G27>0,G27*1000/$G$21,\"-\")","v":9.2837736028872655}]
["Parasitic Load","%",{"$f":"IF(C24>0,1-C25/(C24+C27),\"-\")","v":0.12604148575190499},{"$f":"IF(D24>0,1-D25/(D24+D27),\"-\")","v":0.14416367704715549},{"$f":"IF(E24>0,1-E25/(E24+E27),\"-\")","v":0.25135029319921276},{"$f":"IF(F24>0,1-F25/(F24+F27),\"-\")","v":0.13194685794085215},{"$f":"IF(G24>0,1-G25/(G24+G27),\"-\")","v":0.14799544219185268}]
["Thermal Energy Produced ***","MWh",null,null,null,null,{"$f":"SUM(C29:F29)","v":0},{"$f":"IF(G29>0,G29*1000/$G$21,\"-\")","v":"-"}]
["Thermal Energy Exported ***",null,null,null,null,null,0,{"$f":"IF(G30>0,G30*1000/$G$21,\"-\")","v":"-"}]
["R1 value (if applicable)","R1",null,null,null,null,0.62]
[]
["Waste Disposal & Recovery","Unit","Q1","Q2","Q3","Q4","Year Total","% inputs"]
["APC Residues - produced","tonnes",2388.3200000000002,1682.6,1918.2,2224.58,{"$f":"SUM(C34:F34)","v":8213.7000000000007},{"$f":"IF(G34>0,G34/$G$21,\"-\")","v":2.2656013631150169E-2}]
["IBA - produced",null,19893.849999999999,15737.32,18257.55,18906.95,72795.67,{"$f":"IF(G35>0,G35/$G$21,\"-\")","v":0.20079375820990653}]
["Metals recycling",null,1006.3000000000001,780.30000000000007,778.71999999999991,1029.32,{"$f":"SUM(C36:F36)","v":3594.6400000000003},9.915167688018511E-3]
["Interceptor waste",null,0,56.68,47.48,140.24,{"$f":"SUM(C37:F37)","v":244.4},6.7413342725606011E-4]
["Wooden packaging",null,0,31.92,23.1,0,55.02,1.517627707349772E-4]
["Other",null,0,0,0,0,0,"-"]
[]
["Raw Material Usage","Unit","Q1","Q2","Q3","Q4","Year Total","m3, kg , Ltr/te"]
["Mains Water","m3",42286,33800,43203,44552.275225842284,{"$f":"SUM(C42:F42)","v":163841.27522584228},{"$f":"IF(G42>0,G42/$G$21,\"-\")","v":0.45192667918985463}]
["Other Water","ltrs",null,null,null,null,0,{"$f":"IF(G43>0,G43/$G$21,\"-\")","v":"-"}]
["Ammonia","kgs",104816,92319.999999999985,158741.5,210280,566157.5,1.5616436000070493]
["Urea","kgs",null,null,null,null,{"$f":"SUM(C45:F45)","v":0},"-"]
["Activated Carbon","kgs",24992,26424,28026.152000000002,30600,110042.152,0.30353147737476394]
["Lime / hydrated lime","kgs",567880,293900,472620,575500,1909900,5.268115518479334]
["Fuel oil","ltrs",205681,306613,505513.71570404299,456846.35785202147,1474654.0735560644,4.0675679403578551]
["Gas","cuf",null,null,null,null,0]
["Other",null,null,null,null,null,0]
[]
["Summary ","Line/Unit","Q1","Q2","Q3","Q4","Year Total",null,"Hrs in year "]
["Availability of waste combustion by line, hrs ****",1,2087.5,1565,2011.5,2094.5,{"$f":"SUM(C53:F53)","v":7758.5},{"$f":"+G53/$I$53","v":0.88567351598173516},8760]
[null,2,2151,1648.5,2011,2161.5,7972,{"$f":"+G54/$I$53","v":0.91004566210045668}]
[null,3,null,null,null,null,0,0]
[null,4,null,null,null,null,0,0]
[null,5,null,null,null,null,{"$f":"SUM(C57:F57)","v":0},0]
["Overall Availability, mean avg. of all lines, hrs",null,{"$f":"AVERAGE(C53:C54)","v":2119.25},{"$f":"AVERAGE(D53:D54)","v":1606.75},2011.25,2128,{"$f":"AVERAGE(G53:G54)","v":7865.25},0.89785958904109586]
["Hours of turbine operations, hrs",1,2158,1559.5,1067,2208,6992.5,0.79823059360730597]
["Hours of turbine operations, hrs",2,null,null,null,null,0,0]
["Hours of heat / steam export",null,null,null,null,null,0,{"$f":"IF(B61>0,G60/I53,\"n/a\")","v":"n/a"}]
["Net Calorific Value of waste","MJ/kg"]
["Abnormal Events","qty.",null,null,null,null,0,{"$f":"IF(G63>0,\"yes\",\"no\")","v":"no"}]
["Abnormal operation","hours",null,null,null,null,0,{"$f":"+(G64)/I53","v":0}]
["Permit Breaches","qty.",null,null,1,1,2,{"$f":"IF(G65>0,\"yes\",\"no\")","v":"yes"}]

{"sheet":"Operational Summary","index":4,"n_rows":31,"n_cols":11,"rows_kept":31,"cut":false,"hidden":false,"merged":[[4,0,26,8],[30,0,51,8],[4,10,13,13],[30,10,39,13]]}
[{"$f":"+'Cover Page'!$B$29","v":"Annual Performance Report 2023"},null,null,null,{"$f":"+'Cover Page'!$B$33","v":"Tyseley Energy from Waste Plant"}]
[]
["Summary of Plant Operations and Maintenance during the reporting year",null,null,null,null,null,null,null,null,null,"Notes:"]
[]
["Annual outage and common unit outage\nGrates removed and replaced with new bars\nChiller tubes fitted and aligned\nFurnace inconel membrane repairs\nBoiler tube replacements\nPlate work on all four walls of the vertical feed chute in between the damper door and the inclined hopper\nNDT survey on the water jacket and inconel header\nAsh chute and ash discharger clevis bearings replaced, clevis pin protection housing rebuilt\nBoth ash discharger doors refurbished\nBoiler drum inspection and boiler drum safety valves sent away for service and testing\nGrizzly conveyor complete refurbishement of springs and arms\nReactor tower cleaning\nAir heaters opened and cleaned\nBag house chambers NDT inspection\n11kV and 132kV inspections\n3.3kV HV Switchboard replacement\nID fan motor inspection\nSteam turbine and gearbox inspection\nGenerator testing and electrical testing\nFeed pumps testing and inspection\nBurner control panels replacement including operating equipment, interfaces & sensors\nStack inspection, maintenance and repairs, including lightning protection and NDT",null,null,null,null,null,null,null,null,null,"Include summary of key operational and/or mainteanance activity undertaken in the year, such as any major component upgrades and/or replacements "]
[]
[]
[]
[]
[]
[]
[]
[]
[]
[]
[]
[]
[]
[]
[]
[]
[]
[]
[]
[]
[]
[]
[]
["Summary of Residue Handling for the reporting year"]
[]
["Ash residues (known as Incinerator Bottom Ash or IBA) are currently sent to Castle Bromwich for reprocessing. This material is reprocessed by extracting further ferrous and non-ferrous metals and by crushing, trommelling and screening to produce a graded, quality material that is useable as substitute aggregate in such applications as road building.\nFerrous metal removed from the IBA is sent to a steel manufacturer for recycling.\nFiner particulate matter, know as Air Pollution Control (APC) residues, removed from the flue gases by fabric filter is collected and sent to the Minosus Hazardous Waste underground storage facility in Cheshire or to Empire Works, a Veolia facility, for treatment.",null,null,null,null,null,null,null,null,null,"Include in here a summary of residue handling regimes and destinations "]

{"sheet":"Perf. Form 1","index":5,"n_rows":54,"n_cols":10,"rows_kept":54,"cut":false,"hidden":false,"merged":[[47,0,47,1],[49,0,49,9],[50,0,51,9],[38,0,38,9],[39,0,40,9],[43,0,43,1],[43,2,43,9],[45,0,45,1],[46,0,46,1],[36,0,36,3],[36,4,36,5],[36,7,36,8],[37,0,37,3],[37,4,37,5],[37,7,37,8],[34,0,34,3],[34,4,34,5],[34,7,34,8],[35,0,35,3],[35,4,35,5],[35,7,35,8],[31,0,31,3],[31,7,31,8],[32,0,32,3],[32,4,32,5],[32,7,32,8],[33,0,33,3],[33,4,33,5],[33,7,33,8],[23,0,23,3],[23,4,23,5],[23,6,23,7],[23,8,23,9],[25,0,25,9],[26,0,28,9],[21,0,21,1],[21,2,21,3],[21,4,21,5],[21,6,21,7],[21,8,21,9],[22,0,22,3],[22,4,22,5],[22,6,22,7],[22,8,22,9],[19,0,19,1],[19,2,19,3],[19,4,19,5],[19,6,19,7],[19,8,19,9],[20,0,20,1],[20,2,20,3],[20,4,20,5],[20,6,20,7],[20,8,20,9],[17,0,17,1],[17,2,17,3],[17,4,17,5],[17,6,17,7],[17,8,17,9],[18,0,18,1],[18,2,18,3],[18,4,18,5],[18,6,18,7],[18,8,18,9],[15,0,15,1],[15,2,15,3],[15,4,15,5],[15,6,15,7],[15,8,15,9],[16,0,16,9],[13,0,13,1],[13,2,13,3],[13,4,13,5],[13,6,13,7],[13,8,13,9],[14,0,14,3],[14,4,14,5],[14,6,14,7],[14,8,14,9],[11,0,11,1],[11,2,11,3],[11,4,11,5],[11,6,11,7],[11,8,11,9],[12,0,12,1],[12,2,12,3],[12,4,12,5],[12,6,12,7],[12,8,12,9],[9,0,9,9],[10,0,10,1],[10,2,10,3],[10,4,10,5],[10,6,10,7],[10,8,10,9],[2,0,2,4],[2,6,2,8],[3,1,3,4],[5,3,5,4],[5,6,5,7],[8,0,8,1],[8,2,8,3],[8,4,8,5],[8,6,8,7],[8,8,8,9]]}
[{"$f":"+'Cover Page'!C39","v":2023}," Annual Reporting Performance Form 1"]
[]
[{"$f":"+'Cover Page'!B31","v":"Permit EPR/WP3239SJ"},null,null,null,null,"Operator: ",{"$f":"+'Cover Page'!B37","v":"Veolia ES Birmingham Limited"}]
["Facility:",{"$f":"+'Cover Page'!B33:I33","v":"Tyseley Energy from Waste Plant"},null,null,null,"Form:","Performance 1"]
[]
["Reporting  Period from: ",null,null,"2023-01-01",null,"to:","2023-12-31"]
[]
[{"$f":"+A1","v":2023},"Annual Reporting of Waste Disposal and Recovery"]
["Waste Description",null,"Disposal Route(s)",null,"Disposal Tonnes",null,"Recovery Tonnes",null,"% / tonne of waste incinerated"]
["1) Hazardous Wastes"]
["APC Residues",null,"D12",null,{"$f":"'Operational Data'!G34","v":8213.7000000000007},null,null,null,{"$f":"IF((E11+G11)>0,(E11+G11)/'Operational Data'!$G$21, \"-\")","v":2.2656013631150169E-2}]
["IBA",null,null,null,null,null,null,null,{"$f":"IF((E12+G12)>0,(E12+G12)/'Operational Data'!$G$21, \"-\")","v":"-"}]
["Interceptor waste",null,"D09",null,{"$f":"'Operational Data'!G37","v":244.4},null,null,null,{"$f":"IF((E13+G13)>0,(E13+G13)/'Operational Data'!$G$21, \"-\")","v":6.7413342725606011E-4}]
[null,null,null,null,null,null,null,null,{"$f":"IF((E14+G14)>0,(E14+G14)/'Operational Data'!$G$21, \"-\")","v":"-"}]
["Total Hazardous Waste",null,null,null,{"$f":"SUM(E11:F14)","v":8458.1},null,{"$f":"SUM(G11:H14)","v":0},null,{"$f":"IF((E15+G15)>0,(E15+G15)/'Operational Data'!$G$21, \"-\")","v":2.3330147058406227E-2}]
[]
["2) Non-Hazardous Wastes"]
["IBA",null,"R03",null,null,null,{"$f":"'Operational Data'!G35","v":72795.67},null,{"$f":"IF((E18+G18)>0,(E18+G18)/'Operational Data'!$G$21, \"-\")","v":0.20079375820990653}]
["Ferrous Metal",null,"R04",null,null,null,{"$f":"'Operational Data'!G36","v":3594.6400000000003},null,{"$f":"IF((E19+G19)>0,(E19+G19)/'Operational Data'!$G$21, \"-\")","v":9.915167688018511E-3}]
["Process Water",null,null,null,{"$f":"'Operational Data'!G42-154095","v":9746.2752258422843},null,{"$f":"'Operational Data'!G42-E20","v":154095},null,{"$f":"IF((E20+G20)>0,(E20+G20)/'Operational Data'!$G$21, \"-\")","v":0.45192667918985463}]
["Wooden packaging",null,"R03",null,null,null,{"$f":"'Operational Data'!G38","v":55.02},null,{"$f":"IF((E21+G21)>0,(E21+G21)/'Operational Data'!$G$21, \"-\")","v":1.517627707349772E-4}]
[null,null,null,null,null,null,null,null,{"$f":"IF((E22+G22)>0,(E22+G22)/'Operational Data'!$G$21, \"-\")","v":"-"}]
["Total Non-Hazardous Waste",null,null,null,{"$f":"SUM(E18:F22)","v":9746.2752258422843},null,{"$f":"SUM(G18:H22)","v":230540.33},null,{"$f":"IF((E23+G23)>0,(E23+G23)/'Operational Data'!$G$21, \"-\")","v":0.66278736785851455}]
["TOTAL WASTE",null,null,null,{"$f":"+E23+E15","v":18204.375225842283},null,{"$f":"+G23+G15","v":230540.33},null,{"$f":"IF((E24+G24)>0,(E24+G24)/'Operational Data'!$G$21, \"-\")","v":0.68611751491692086}]
[]
["Operator’s comments :"]
[]
[]
[]
[]
[{"$f":"+A1","v":2023},"Annual Reporting of Water and Other Raw Material Usage"]
["Raw Material",null,null,null,"Usage",null,"Unit","Specific Useage",null,"Unit"]
["Mains Water",null,null,null,{"$f":"+'Operational Data'!G42","v":163841.27522584228},null,"m3",{"$f":"IF(E33>0,E33/'Operational Data'!$G$21,\"-\")","v":0.45192667918985463},null,"m3/te"]
["Total Water",null,null,null,{"$f":"+'Operational Data'!G43+'Operational Data'!G42","v":163841.27522584228},null,"m3",{"$f":"IF(E34>0,E34/'Operational Data'!$G$21,\"-\")","v":0.45192667918985463},null,"m3/te"]
["Urea / Ammonia",null,null,null,{"$f":"+'Operational Data'!G44","v":566157.5},null,"kg",{"$f":"IF(E35>0,E35/'Operational Data'!$G$21,\"-\")","v":1.5616436000070493},null,"kg/te"]
["Activated Carbon",null,null,null,{"$f":"+'Operational Data'!G46","v":110042.152},null,"kg",{"$f":"IF(E36>0,E36/'Operational Data'!$G$21,\"-\")","v":0.30353147737476394},null,"kg/te"]
["Lime / hydrated lime / Sodium Bicarb.",null,null,null,{"$f":"+'Operational Data'!G47","v":1909900},null,"kg",{"$f":"IF(E37>0,E37/'Operational Data'!$G$21,\"-\")","v":5.268115518479334},null,"kg/te"]
[]
["Operator’s comments :"]
[]
[]
[]
[{"$f":"+A31","v":2023},"Annual Reporting of other performance indicators "]
["Parameter",null,"Results by Line"]
[null,null,"A1","A2","A3","A4","A5",null,"Turbine 1","Turbine 2"]
["Operating hours for the year, hours",null,{"$f":"'Operational Data'!G53","v":7758.5},{"$f":"'Operational Data'!G54","v":7972},null,null,null,null,{"$f":"'Operational Data'!G59","v":6992.5}]
["Number of periods of abnormal operation, qty."]
["Cumulative hours of abnormal operation for this year, hours"]
[]
["Operator’s comments :"]
[]
[]
[]
["Signed: ","Scott Francis",null,null,null,null,"Date:","2024-01-30"]

{"sheet":"Energy Form 1","index":6,"n_rows":29,"n_cols":8,"rows_kept":29,"cut":false,"hidden":false,"merged":[[15,0,15,2],[15,3,15,4],[15,6,15,8],[17,0,17,8],[18,0,24,8],[13,0,13,2],[13,3,13,4],[13,6,13,8],[14,0,14,2],[14,3,14,4],[14,6,14,8],[11,0,11,2],[11,3,11,4],[11,6,11,8],[12,0,12,2],[12,3,12,4],[12,6,12,8],[9,0,9,2],[9,3,9,4],[9,6,9,8],[10,0,10,2],[10,3,10,4],[10,6,10,8],[2,6,2,8],[4,1,4,4],[6,3,6,4],[6,6,6,7],[8,0,8,2],[8,3,8,4],[8,6,8,8]]}
[{"$f":"+'Cover Page'!C39","v":2023}," Annual Reporting of Energy Usage/Export"]
[]
[{"$f":"+'Cover Page'!B31","v":"Permit EPR/WP3239SJ"},null,null,null,null,"Operator: ",{"$f":"+'Cover Page'!B37","v":"Veolia ES Birmingham Limited"}]
[]
["Facility:",{"$f":"+'Cover Page'!B33:I33","v":"Tyseley Energy from Waste Plant"},null,null,null,"Form:","Energy 1"]
[]
["Reporting  Period from: ",null,null,{"$f":"+'Perf. Form 1'!D6:E6","v":"2023-01-01"},null,"to:",{"$f":"+'Perf. Form 1'!G6:H6","v":"2023-12-31"}]
[]
["Energy Source",null,null,"Energy Usage",null,"Unit","Specific Useage (KWh/tonne incinerated"]
["Electricity Produced",null,null,{"$f":"+'Operational Data'!G24","v":166477},null,"MWh",{"$f":"+'Operational Data'!H24","v":459.19685175657577}]
["Electricity Imported   ",null,null,{"$f":"+'Operational Data'!G27","v":3365.7347000000004},null,"MWh",{"$f":"+'Operational Data'!H27","v":9.2837736028872655}]
["Electricity Exported",null,null,{"$f":"+'Operational Data'!G25","v":144706.78407499997},null,"MWh",{"$f":"+'Operational Data'!H25","v":399.14762805107364}]
["Gas Oil",null,null,{"$f":"'Operational Data'!G48","v":1474654.0735560644},null,"ltrs",{"$f":"'Operational Data'!H48","v":4.0675679403578551}]
["Steam/hot water exported",null,null,{"$f":"+'Operational Data'!G30","v":0},null,"GWh",{"$f":"+'Operational Data'!H30","v":"-"}]
[]
[]
[]
["Operator’s comments :"]
[]
[]
[]
[]
[]
[]
[]
[]
[]
[]
["Signed: ","Scott Francis",null,null,null,null,"Date:","2024-01-30"]

{"sheet":"Permit Compliance","index":7,"n_rows":34,"n_cols":12,"rows_kept":34,"cut":false,"hidden":false,"merged":[[20,0,21,0],[8,11,16,11],[26,0,26,10],[18,0,18,10],[31,1,31,3],[31,4,31,6],[31,7,31,9],[27,1,27,3],[27,4,27,6],[27,7,27,9],[28,1,28,3],[28,4,28,6],[28,7,28,9],[23,1,23,3],[23,4,23,6],[23,7,23,9],[24,1,24,3],[24,4,24,6],[32,1,32,3],[32,4,32,6],[32,7,32,9],[29,1,29,3],[29,4,29,6],[29,7,29,9],[30,1,30,3],[30,4,30,6],[30,7,30,9],[24,7,24,9],[22,1,22,3],[22,4,22,6],[20,7,22,9],[20,4,21,6],[20,1,21,3],[19,1,19,3],[19,4,19,6],[19,7,19,9],[14,0,14,1],[14,2,14,4],[14,5,14,8],[15,0,15,1],[16,2,16,4],[16,5,16,8],[15,2,15,4],[15,5,15,8],[16,0,16,1],[7,0,7,1],[7,2,7,8],[8,0,8,1],[8,2,8,4],[8,5,8,8],[33,4,33,8],[9,0,9,1],[9,2,9,4],[9,5,9,8],[10,0,10,1],[10,2,10,4],[10,5,10,8],[11,0,11,1],[11,2,11,4],[11,5,11,8],[12,0,12,1],[12,2,12,4],[12,5,12,8],[13,0,13,1],[13,2,13,4],[13,5,13,8]]}
[{"$f":"+'Cover Page'!$B$29","v":"Annual Performance Report 2023"},null,null,null,{"$f":"+'Cover Page'!$B$33","v":"Tyseley Energy from Waste Plant"}]
[]
["Summary of Permit Compliance"]
[]
["Compliance with permit limits for continuously monitored pollutants"]
[]
["The plant met its emission limits as shown in the table below:"]
["Substance",null,"Percentage time compliant during operationNote 1",null,null,null,null,null,null,null,null,"Notes:"]
[null,null,"Half-hourly limit",null,null,"Daily limit",null,null,null,null,null,"Note 1: Please report to 2 decimal places, i.e. xx.xx%\n\nNote 2: Please provide a brief summary of each notification or non-compliance in the table (rather than just referring to notifications that were sent to the Regulator), including stating the value of measured result for any ELV exceedances.   \n\n"]
["Particulates",null,1,null,null,1]
["Oxides of nitrogen",null,1,null,null,1]
["Sulphur dioxide",null,1,null,null,1]
["Carbon monoxide",null,"xx.xx % or \n100.00% 95% of 10-min averages",null,null,1]
["Total organic carbon",null,0.99,null,null,1]
["Hydrogen chloride",null,1,null,null,1]
["Hydrogen fluoride",null,"xx.xx %",null,null,"xx.xx %"]
[null,null,"xx.xx %",null,null,"xx.xx %"]
[]
["Summary of any notifications or non-compliances under the permit"]
["Date","Summary of notification or non-compliance [including Line/Reference]Note 2",null,null,"Reason ",null,null,"Measures taken to prevent reoccurrence"]
["2023-08-11","TOC half hourly spike on Line 2 at 24,4mg/m3 against the half hourly limit of 20mg/m3",null,null,"Gas explosion in the furnace",null,null,"Reduced boiler load and carried out inspection"]
[]
[]
[]
[]
[]
["Summary of any complaints received and actions to taken to resolve them."]
["Date","Summary of complaint [including Line/Reference]",null,null,"Reason *",null,null,"Measures taken to prevent reoccurrence"]
[]
[]
[]
[]
[]
[null,null,null,null,"* including whether substantiated by the operator or the EA"]

{"sheet":"Improvements","index":8,"n_rows":39,"n_cols":5,"rows_kept":39,"cut":false,"hidden":false,"merged":[[37,0,37,8],[38,0,47,8],[4,0,4,8],[5,0,13,8],[15,0,15,8],[16,0,24,8],[26,0,26,8],[27,0,35,8]]}
[{"$f":"+'Cover Page'!$B$29","v":"Annual Performance Report 2023"},null,null,null,{"$f":"+'Cover Page'!$B$33","v":"Tyseley Energy from Waste Plant"}]
[]
["Summary of Plant Improvements"]
[]
["Summary of any efficiency improvements that have been completed within the year."]
["n/a"]
[]
[]
[]
[]
[]
[]
[]
[]
[]
["Summary of any permit improvement conditions that have been completed within the year and the resulting environmental benefits."]
["IC2 - Submitted\nIC3 - Submitted"]
[]
[]
[]
[]
[]
[]
[]
[]
[]
["Summary of any changes to the plant or operating techniques which required a variation to the permit and a summary of the resulting environmental impact."]
["WI BREF Permit variation received November 2023.\nLower ELVs introduced since the 3rd of December 2023, where applicable and under the new permit, a number of Improvement Conditions are required. Two of those are already submitted."]
[]
[]
[]
[]
[]
[]
[]
[]
[]
["Summary of any other improvements made to the plant or planned to be made and a summary of the resulting environmental benefits."]
["n/a"]

{"sheet":"Public Liasion","index":9,"n_rows":29,"n_cols":5,"rows_kept":29,"cut":false,"hidden":false,"merged":[[23,0,24,1],[23,2,24,8],[25,0,26,1],[25,2,26,8],[28,0,28,8],[17,0,18,1],[17,2,18,8],[19,0,20,1],[19,2,20,8],[21,0,22,1],[21,2,22,8],[16,0,16,1],[16,2,16,8],[5,0,5,1],[5,2,5,8],[6,0,7,1],[6,2,7,8],[8,0,9,1],[8,2,9,8],[10,0,11,1],[10,2,11,8],[12,0,13,1],[12,2,13,8],[15,0,15,8]]}
[{"$f":"+'Cover Page'!$B$29","v":"Annual Performance Report 2023"},null,null,null,{"$f":"+'Cover Page'!$B$33","v":"Tyseley Energy from Waste Plant"}]
[]
["Details of Public & Stakeholder Liasion"]
[]
["Summary of events held during the reporting year."]
["Date",null,"Description"]
["Bi-monthly",null,"Meetings with Birmingham City Council"]
[]
[]
[]
[]
[]
[]
[]
[]
["List of events planned for next year"]
["Date",null,"Description"]
["Bi-monthly",null,"Meetings with Birmingham City Council"]
[]
[]
[]
[]
[]
[]
[]
[]
[]
[]
["If you wish to be involved in the public liasion programme, please contact _https://www.birmingham.veolia.co.uk/contact#no-back________________"]

{"sheet":"CO2 N2O","index":10,"n_rows":23,"n_cols":6,"rows_kept":23,"cut":false,"hidden":false,"merged":[[20,2,20,3],[23,1,23,3],[16,2,16,3],[4,0,4,3],[9,0,9,3],[17,0,17,3],[13,0,13,3],[12,0,12,1],[8,2,8,3],[11,2,11,3]]}
[{"$f":"+'Cover Page'!$B$29","v":"Annual Performance Report 2023"},null,{"$f":"+'Cover Page'!$B$33","v":"Tyseley Energy from Waste Plant"}]
[]
["Carbon dioxide emissions and biogenic content of waste inputs",null,null,null,null,"Notes:"]
[]
["Carbon dioxide emissions (all types of plant)"]
[null,"Annual mass of carbon dioxide released","tonnes ",409804]
[null,"Annual mass of carbon dioxide released per tonne of waste burned","t CO2 / t waste ",{"$f":"D6/'Operational Data'!G21","v":1.130370601568095}]
[null,"Annual mass of carbon dioxide released per MWh of energy exported","t CO2 / MWh export ",{"$f":"D6/'Operational Data'!G25","v":2.8319612146698181}]
[null,"Description of how annual carbon dioxide mass emission has been calculated. \nSee Note 1","CEM data",null,null,"Note 1: Where available, data from CO2 CEMS should be used. \nOtherwise, only where no CEMS data is available, a suitable emissions factor should be used based on the tonnage of waste burned e.g.0.942 tCO2/t waste as per Tolvik report 2022, or other justified emissions factor  - refer to embedded Environment Agency guidance note above or updated version for suitable descriptive text."]
["Nitrous oxide emissions (only plants which use ammonia or urea to abate NOx emissions)"]
[null,"Annual mass emissions of nitrous oxide","tonnes N2O",2.2200000000000002]
[null,"Description of how annual nitrous oxide mass emission has been calculated\nSee Note 2","CEM data",null,null,"Note 2: Where available, data from N2O CEMS should be used. \nIf no CEMS data is available, from periodic monitoring. Otherwise, a suitable emissions factor should be used based on the tonnage of waste burned e.g. 0.0981 kgN20/t waste as per 2021 Pollution Inventory data for plants with urea-based SNCR - refer to embedded Environment Agency guidance note above or updated version for suitable descriptive text."]
["Total annual carbon dioxide and nitrous oxide emissions. \nSee Note 3. ",null,"tonnes CO2e",{"$f":"(D11*298)+D6","v":410465.56},null,"Note 3: Total annual carbon dioxide and nitrous oxide emissions reported as carbon dioxide equivalent where 1 tonne nitrous oxide is equivalent to 298 tonne carbon dioxide"]
["Biogenic CO2 emissions (See Note 4)",null,null,null,null,"Note 4: Only plants combusting residual municipal waste, refuse derived fuel or solid recovered fuel"]
[null,"Percentage of total carbon dioxide emissions arising from biogenic waste","%"]
[null,"No. of measurements undertaken","Number"]
[null,"Description of how percentage biogenic carbon dioxide emissions have been measured or calculated.\nSee Note 5",null,null,null,"Note 5: Examples include direct measurement via C14 method or BIOMA software - refer to embedded Environment Agency guidance note above or updated version for suitable descriptive text, quoting standards where relevant. \nOtherwise, as an approximation (and in lieu of any more accurate metrics which may be developed in future), the measured or estimated biogenic fraction by net calorific value can be assumed to be the same as the biogenic CO2 fraction of the total CO2 emissions from the plant. "]
["Biogenic fraction of waste feedstock (See Note 4)"]
[null,"Yearly average biogenic percentage of the waste by net calorific value (NCV)",0.51800000000000002,{"$f":"'Operational Data'!G21*0.518","v":187795.46434197674}]
[null,"If sampling undertaken, no. of samples used to ascertain average biogenic % above","Number"]
[null,"Description of how biogenic percentage (by NCV) has been calculated or estimated. \nSee Note 6","2017 WRAP data",null,null,"Note 6: Where available, data from waste sampling should be used; otherwise, an estimated figure with justification can be used, or a figure assumed on the basis of a national average e.g. 2017 WRAP data for residual waste of 51.8% biogenic energy content - refer to embedded Environment Agency guidance note above or updated version for suitable descriptive text, quoting standards where relevant. "]
[]
[null,"Comments:"]

{"sheet":"Residue Quality ","index":11,"n_rows":35,"n_cols":6,"rows_kept":35,"cut":false,"hidden":false,"merged":[[35,0,40,6],[32,3,32,4],[34,0,34,6],[27,0,28,1],[29,0,29,1],[30,0,30,1],[31,0,31,1],[32,0,32,1],[29,3,29,4],[30,3,30,4],[29,5,29,6],[30,5,30,6],[31,5,31,6],[32,5,32,6],[20,0,21,1],[20,2,21,6],[22,0,23,1],[22,2,23,6],[31,3,31,4],[27,2,28,2],[28,3,28,4],[28,5,28,6],[27,3,27,6],[26,0,26,6],[5,0,6,6],[7,0,8,6],[9,0,10,6],[14,0,15,1],[14,2,15,6],[16,0,17,1],[16,2,17,6],[18,0,19,1],[18,2,19,6],[12,0,12,6],[13,0,13,1],[13,2,13,6]]}
[{"$f":"+'Cover Page'!$B$29","v":"Annual Performance Report 2023"},null,null,null,{"$f":"+'Cover Page'!$B$33","v":"Tyseley Energy from Waste Plant"}]
[]
["Residue Quality Monitoring Requirements"]
[]
["Summary of monitoring undertaken and compliance"]
["As per permit requirements"]
[]
[]
[]
[]
[]
[]
["Commentary on any specific events"]
["Date & Event",null,"Description"]
[]
[]
[]
[]
[]
[]
[]
[]
[]
[]
[]
[]
["Residue Quality Monitoring Results"]
["Parameter (unit) ",null,"Limit","Normal Operation "]
[null,null,null,"Bottom ash  ",null,"APC Residues"]
["Loss on Ignition (average %)",null,"<5%",3.2000000000000001E-2]
["Total Organic Carbon (average %)",null,"<3%"]
["No. of Assessments Undertaken",null,"---"]
["No. of Hazardous Results",null,"---"]
[]
["Comments :"]

{"sheet":"Water","index":12,"n_rows":41,"n_cols":9,"rows_kept":41,"cut":false,"hidden":false,"merged":[[36,3,36,4],[37,3,37,4],[38,3,38,4],[39,3,39,4],[40,3,40,4],[30,3,30,4],[31,3,31,4],[33,3,33,4],[34,3,34,4],[35,3,35,4],[32,3,32,4],[36,0,36,2],[37,0,37,2],[38,0,38,2],[39,0,39,2],[40,0,40,2],[30,0,30,2],[31,0,31,2],[33,0,33,2],[34,0,34,2],[35,0,35,2],[32,0,32,2],[29,0,29,2],[29,3,29,4],[26,0,26,2],[26,3,26,4],[27,0,27,2],[27,3,27,4],[28,0,28,2],[28,3,28,4],[23,0,23,2],[23,3,23,4],[24,0,24,2],[24,3,24,4],[25,0,25,2],[25,3,25,4],[21,0,21,8],[22,0,22,2],[22,3,22,4],[14,0,15,1],[14,2,15,8],[16,0,17,1],[16,2,17,8],[18,0,19,1],[18,2,19,8],[5,0,6,8],[7,0,8,8],[9,0,10,8],[12,0,12,8],[13,0,13,1],[13,2,13,8]]}
[{"$f":"+'Cover Page'!$B$29","v":"Annual Performance Report 2023"},null,null,null,{"$f":"+'Cover Page'!$B$33","v":"Tyseley Energy from Waste Plant"}]
[]
["Emissions to Water"]
[]
["Summary of monitoring undertaken and compliance"]
["As per Severn Trent Conditions of Consent to the discharge trade effluent to the public foul water sewer"]
[]
[]
[]
[]
[]
[]
["Commentary on any specific events"]
["Date & Event",null,"Description"]
[]
[]
[]
[]
[]
[]
[]
["Emissions to Water / Sewer"]
["Parameter",null,null,"Monitoring Frequency",null,"Limit","Target","Max.","Average"]
["Outlet 1"]
["SULPHATE",null,null,"Periodic",null,1500,null,848,660.5]
["CHRIOMIUM (Cr)",null,null,"Periodic",null,5,null,4.5999999999999999E-2,3.0499999999999999E-2]
["COPPER (Cu)",null,null,"Periodic",null,5,null,0.91,0.70500000000000007]
["LEAD (Pb)",null,null,"Periodic",null,5,null,0.4,0.30000000000000004]
["NICKEL (Ni)",null,null,"Periodic",null,5,null,5.5E-2,4.4999999999999998E-2]
["ZINC (Zn)",null,null,"Periodic",null,10,null,0.66,0.59499999999999997]
["SULPHIDE as S",null,null,"Periodic",null,1,null,0.19700000000000001,0.10920000000000001]
["pH",null,null,"Periodic",null,12.5,null,12.4,12.2]
["Outlet 2 "]
["SULPHATE",null,null,"Periodic",null,1500]
["CHRIOMIUM (Cr)",null,null,"Periodic",null,5]
["COPPER (Cu)",null,null,"Periodic",null,5]
["LEAD (Pb)",null,null,"Periodic",null,5]
["NICKEL (Ni)",null,null,"Periodic",null,5]
["ZINC (Zn)",null,null,"Periodic",null,10]
["SULPHIDE as S",null,null,"Periodic",null,1]
["pH",null,null,"Periodic",null,12.5]

{"sheet":"Air (periodic)","index":13,"n_rows":44,"n_cols":15,"rows_kept":44,"cut":false,"hidden":false,"merged":[[43,0,56,11],[25,0,25,1],[25,3,25,4],[26,3,26,4],[27,3,27,4],[28,3,28,4],[35,3,35,4],[29,3,29,4],[30,3,30,4],[32,3,32,4],[42,0,42,11],[40,0,40,1],[36,3,36,4],[31,3,31,4],[37,3,37,4],[37,0,37,1],[12,0,12,1],[11,3,11,4],[12,3,12,4],[19,0,19,1],[20,0,20,1],[16,0,16,1],[17,0,17,1],[18,0,18,1],[13,0,13,1],[14,0,14,1],[15,0,15,1],[13,12,14,14],[15,12,16,12],[15,13,16,13],[15,14,16,14],[18,3,18,4],[13,3,13,4],[14,3,14,4],[15,3,15,4],[16,3,16,4],[17,3,17,4],[22,3,22,4],[21,3,21,4],[23,3,23,4],[38,3,38,4],[39,3,39,4],[24,3,24,4],[38,0,38,1],[39,0,39,1],[29,0,29,1],[30,0,30,1],[26,0,26,1],[27,0,27,1],[21,0,21,1],[28,0,28,1],[22,0,22,1],[23,0,23,1],[24,0,24,1],[41,3,41,4],[33,3,33,4],[34,3,34,4],[40,3,40,4],[9,0,10,1],[9,3,10,4],[9,2,10,2],[41,0,41,1],[31,0,31,1],[32,0,32,1],[33,0,33,1],[34,0,34,1],[35,0,35,1],[36,0,36,1],[19,3,19,4],[20,3,20,4],[5,12,8,15],[9,12,11,15],[8,0,8,11],[5,0,6,11],[11,0,11,1],[9,10,9,11],[9,8,9,9],[9,7,10,7],[9,5,9,6]]}
[{"$f":"+'Cover Page'!$B$29","v":"Annual Performance Report 2023"},null,null,null,{"$f":"+'Cover Page'!$B$33","v":"Tyseley Energy from Waste Plant"}]
[]
["Emissions to Air (periodically monitored)"]
[]
["Summary of monitoring undertaken, standards used and compliance",null,null,null,null,null,null,null,null,null,null,null,"Notes:"]
["As per permit requirements",null,null,null,null,null,null,null,null,null,null,null,"Template may require adjustment for any bespoke monitoring requirements of permit - please also check that all default ELV values, reference periods and the stated oxygen reference value match those for your plant, and edit if necessary!"]
[]
[]
["Results of emissions to air that are periodically monitored - oxygen reference 11% "]
["Substance",null,"Ref. Period","Emission Limit Value*",null,null,null,"Ref. Period",null,null,"Average",null,"User to add additional tables as necessary, depending on whether quarterly or bi-annual reporting is required for the compliance year"]
[null,null,null,null,null,"A1(Q1&Q2)","A2(Q1&Q2)",null,"A1(Q3&Q4)","A2(Q3&Q4)","A1","A2"]
["Hydrogen fluoride",null,"1 hr","2 mg/m3",null,0.1,0.11,"30min x 3",6.3333333333333339E-2,5.3333333333333337E-2,{"$f":"AVERAGE(F12,I12)","v":8.1666666666666665E-2},{"$f":"AVERAGE(G12,J12)","v":8.1666666666666665E-2}]
["Cd and Th and their compounds",null,"0.5-8hrs","0.05 mg/m3",null,6.2E-4,6.3000000000000003E-4,"30min x 3",2.0666666666666667E-3,1.5999999999999999E-3,{"$f":"AVERAGE(F13,I13)","v":1.3433333333333333E-3},{"$f":"AVERAGE(G13,J13)","v":1.1149999999999999E-3}]
["Hg and its compounds",null,"0.5-8hrs","0.05 mg/m3",null,5.2999999999999998E-4,2.5999999999999999E-3,"30min x 3",8.1666666666666682E-4,1.6E-2,6.733333333333334E-4,9.2999999999999992E-3,"* Denotes limits that were in force until 2 December 2023; from 3 December 2023 the following new limits applied (those not listed remained unchanged):"]
["Sb, As, Pb, Cr, Co, Cu, Mn, Ni, V and their compounds",null,"0.5-8hrs","0.5 mg/m3",null,5.3999999999999999E-2,1.9E-2,"30min x 3",6.6000000000000003E-2,5.4666666666666662E-2,0.06,3.6833333333333329E-2]
["Chlorinated Dioxins & Furans (I-TEQ)",null,"6-8hrs","0.1 ng/m3",null,7.0000000000000001E-3,1.2999999999999999E-2,"6-8hrs",3.1E-2,0.15,1.9E-2,8.1500000000000003E-2,"Substance","Reference Period","Emission Limit Value"]
["PCBs (WHO-TEQ Humans / Mammals)",null,"6-8hrs","None set ng/m3",null,3.0000000000000001E-3,8.0999999999999996E-4,"6-8hrs",1.5E-3,6.4999999999999997E-3,2.2500000000000003E-3,3.6549999999999998E-3]
["PCBs (WHO-TEQ Fish)",null,"6-8hrs","None set ng/m3",null,1.9000000000000001E-4,5.5000000000000002E-5,"6-8hrs",8.3999999999999995E-5,3.5E-4,1.37E-4,2.0249999999999999E-4,"Hydrogen fluoride","Average of three consecutive measurements of at least 30 minutes each","1 mg/m3"]
["PCBs (WHO-TEQ Birds)",null,"6-8hrs","None set ng/m3",null,1.7000000000000001E-2,7.7999999999999996E-3,"6-8hrs",5.1000000000000004E-3,1.9E-2,1.1050000000000001E-2,1.3399999999999999E-2,"Cd and Th and their compounds","Average of three consecutive measurements of at least 30 minutes each","0.02 mg/m3"]
["Dioxins & Furans (WHO-TEQ Humans / Mammals)",null,"6-8hrs","None set ng/m3",null,7.4000000000000003E-3,1.4999999999999999E-2,"6-8hrs",3.3000000000000002E-2,0.16,2.0200000000000003E-2,8.7499999999999994E-2,"Hg and its compounds","Average of three consecutive measurements of at least 30 minutes each","0.02 mg/m3"]
["Dioxins & Furans (WHO-TEQ Fish)",null,"6-8hrs","None set ng/m3",null,6.7999999999999996E-3,1.4E-2,"6-8hrs",3.1E-2,0.16,1.89E-2,8.7000000000000008E-2,"Sb, As, Pb, Cr, Co, Cu, Mn, Ni, V and their compounds","Average of three consecutive measurements of at least 30 minutes each","0.3 mg/m3"]
["Dioxins & Furans (WHO-TEQ Birds)",null,"6-8hrs","None set ng/m3",null,1.2E-2,2.9000000000000001E-2,"6-8hrs",6.5000000000000002E-2,0.34,3.85E-2,0.18450000000000003,"Dioxins & Furans (I-TEQ)","6-8hrs","0.06 ng/m3"]
["Brominated Dioxins & Furans (I-TEQ)",null,"6-8hrs","None set ng/m3",null,1.1999999999999999E-3,1E-3,"6-8hrs",1.65E-3,1.24E-3,1.4250000000000001E-3,1.1199999999999999E-3]
["Nitrous Oxide",null,"1 hr","None set mg/m3",null,0.85,0.85,"n/a","n/a","n/a",0.85,0.85]
["Ammonia",null,"1 hr","None set mg/m3",null,0.77,0.47,"n/a","n/a","n/a",0.77,0.47]
["Total PAH",null,"6-8hrs","None set µg/m3",null,0.14000000000000001,0.21,"6-8hrs",0.1,0.86,0.12000000000000001,0.53500000000000003]
["Anthanthrene",null,"6-8hrs","None set µg/m3",null,1.5E-3,1.4E-3,"6-8hrs",1.9E-3,1.4E-3,1.7000000000000001E-3,1.4E-3]
["Benzo(a)anthracene",null,"6-8hrs","None set µg/m3",null,1.5E-3,1.4E-3,"6-8hrs",1.9E-3,1.4E-3,1.7000000000000001E-3,1.4E-3]
["Benzo(a)pyrene",null,"6-8hrs","None set µg/m3",null,1.5E-3,1.4E-3,"6-8hrs",1.9E-3,1.4E-3,1.7000000000000001E-3,1.4E-3]
["Benzo(b)fluoranthene",null,"6-8hrs","None set µg/m3",null,1.5E-3,1.4E-3,"6-8hrs",1.9E-3,1.4E-3,1.7000000000000001E-3,1.4E-3]
["Benzo(b)naptho(2,1-d) thiophene",null,"6-8hrs","None set µg/m3",null,1.5E-3,1.4E-3,"6-8hrs",1.9E-3,1.4E-3,1.7000000000000001E-3,1.4E-3]
["Benzo(c)phenanthrene",null,"6-8hrs","None set µg/m3",null,1.5E-3,1.4E-3,"6-8hrs",1.9E-3,1.4E-3,1.7000000000000001E-3,1.4E-3]
["Benzo(ghi)perylene",null,"6-8hrs","None set µg/m3",null,2.5999999999999999E-3,4.4000000000000003E-3,"6-8hrs",7.3000000000000001E-3,1.5E-3,4.9499999999999995E-3,2.9500000000000004E-3]
["Benzo(k)fluoranthene",null,"6-8hrs","None set µg/m3",null,1.5E-3,1.4E-3,"6-8hrs",1.9E-3,1.4E-3,1.7000000000000001E-3,1.4E-3]
["Cholanthrene",null,"6-8hrs","None set µg/m3",null,1.5E-3,1.4E-3,"6-8hrs",1.9E-3,1.4E-3,1.7000000000000001E-3,1.4E-3]
["Chrysene",null,"6-8hrs","None set µg/m3",null,1.5E-3,1.4E-3,"6-8hrs",2.0999999999999999E-3,1.6000000000000001E-3,1.8E-3,1.5E-3]
["Cyclopenta(cd)pyrene",null,"6-8hrs","None set µg/m3",null,1.5E-3,1.4E-3,"6-8hrs",1.9E-3,1.8E-3,1.7000000000000001E-3,1.5999999999999999E-3]
["Dibenzo(ai)pyrene",null,"6-8hrs","None set µg/m3",null,1.5E-3,1.4E-3,"6-8hrs",1.9E-3,1.4E-3,1.7000000000000001E-3,1.4E-3]
["Dibenzo(ah)anthracene",null,"6-8hrs","None set µg/m3",null,1.5E-3,1.4E-3,"6-8hrs",1.9E-3,1.4E-3,1.7000000000000001E-3,1.4E-3]
["Fluoranthene",null,"6-8hrs","None set µg/m3",null,1.2E-2,2.4E-2,"6-8hrs",2.9000000000000001E-2,3.4000000000000002E-2,2.0500000000000001E-2,2.9000000000000001E-2]
["Indeno(123-cd) pyrene",null,"6-8hrs","None set µg/m3",null,1.5E-3,1.4E-3,"6-8hrs",1.9E-3,1.4E-3,1.7000000000000001E-3,1.4E-3]
["Naphthalene",null,"6-8hrs","None set µg/m3",null,0.11,0.16,"6-8hrs",4.1000000000000002E-2,0.8,7.5499999999999998E-2,0.48000000000000004]
["Comments :"]
["Brominated dioxins & furans periodic emissions results added into the table above. \nThe new site permit has been received November 2023, consequently Q1/Q2 periodic emissions was carried under the permit applicable at that period of time and Q3/Q4 periodic emissions was carried out following the new permit requirements which was received November 2023. Nitrous oxide and ammonia were a permit requirement when Q1/Q2 periodic emissions were taking place and although those gases were already measured continiously by the CEM system they were included in the periodic emissions monitoring campaign in order to fulfill the requirements of the permit applicable to site at that period of time. The table above has been modified to reflect those changes.  \nThe PAH monitoring is an annual requirement under the new permit, however two monitoring campaings were carried out within the year, in order to capture, each one of those, the requirements of the permit which was applicable for the site at that time of the year and the time of the emissions monitoring campaign was taking place.\nThe chlorinated Dioxins & Furans (I-TEQ) periodic emission result for A2 in Q3/Q4 showed an exceedance with a figure of 0.15ng/m3 vs the ELV of 0.1ng/m3. A retest has been carried out and the result of the retest is 0.027ng/m3. The retest was carried out after the new lower ELVs came into force on the 3rd of December 2023, this test result is compliant with both old and new Dioxins & Furans ELV of 0.06ng/m3. The high result is reported in the table above as this was the orginal test."]

{"sheet":"Air (CEMS)","index":14,"n_rows":35,"n_cols":16,"rows_kept":35,"cut":false,"hidden":false,"merged":[[34,0,36,12],[15,13,16,13],[15,14,16,14],[13,0,15,0],[5,0,6,12],[7,0,8,12],[10,0,10,12],[11,0,12,0],[11,2,12,2],[11,1,12,1],[11,3,11,4],[11,5,11,6],[11,7,11,8],[11,9,11,10],[11,11,11,12],[15,15,16,15],[12,13,13,15],[32,0,32,12],[21,0,23,0],[24,0,26,0],[27,0,29,0],[30,0,31,0],[16,0,18,0],[19,0,20,0]]}
[{"$f":"+'Cover Page'!$B$29","v":"Annual Performance Report 2023"},null,null,null,null,null,null,null,{"$f":"+'Cover Page'!$B$33","v":"Tyseley Energy from Waste Plant"}]
[]
["Emissions to Air (continously monitored)"]
[null,null,null,null,null,null,null,null,null,null,null,null,null,"Notes:"]
["Summary of monitoring undertaken, standards used and compliance",null,null,null,null,null,null,null,null,null,null,null,null,"Template may require adjustment for any bespoke monitoring requirements of permit"]
["BS EN 14181 & MCertS CEM system",null,null,null,null,null,null,null,null,null,null,null,null,"Please check that all default ELV values match those for your plant and edit if necessary!"]
[null,null,null,null,null,null,null,null,null,null,null,null,null,"Report to 1 decimal place"]
[]
[]
[]
["Results of emissions to air that are continuously monitored (maximum and average values for each line) - oxygen reference 11%"]
["Substance","Reference Period","Emission Limit Value**","A1",null,"A2",null,"A3",null,"A4",null,"A5"]
[null,null,null,"Max.","Avg.","Max.","Avg.","Max.","Avg.","Max.","Avg.","Max.","Avg.","** Denotes limits that were in force until 2 December 2023; from 3 December 2023 the following new limits applied (those not listed remained unchanged):"]
["Oxides of nitrogen","Daily mean","200 mg/m3 ",{"$f":"NOx!O19","v":183.9},{"$f":"NOx!N19","v":161.80833333333337},{"$f":"NOx!O35","v":188.9},{"$f":"NOx!N35","v":159.50833333333333}]
[null,"Daily mean","180 mg/m3 ",{"$f":"NOx!O20","v":169.9},{"$f":"NOx!N20","v":158.19999999999999},{"$f":"NOx!O36","v":170.2},{"$f":"NOx!N36","v":159}]
[null,"½ hourly mean","400 mg/m3 ",{"$f":"NOx!M19","v":264.5},{"$f":"NOx!L19","v":161.95000000000002},{"$f":"NOx!M35","v":318.10000000000002},{"$f":"NOx!L35","v":159.52499999999998},null,null,null,null,null,null,"Substance","Reference Period","Emission Limit Value"]
["Particulates","Daily mean","10 mg/m3",{"$f":"Particulates!O19","v":3.4},{"$f":"Particulates!N19","v":0.4333333333333334},{"$f":"Particulates!O35","v":4.5},{"$f":"Particulates!N35","v":0.85833333333333328}]
[null,"Daily mean","5 mg/m3",{"$f":"Particulates!O20","v":3.4},{"$f":"Particulates!N20","v":0.4},{"$f":"Particulates!O36","v":0.7},{"$f":"Particulates!N36","v":0.6}]
[null,"½ hourly mean","30 mg/m3 ",{"$f":"Particulates!M19","v":7.1},{"$f":"Particulates!L19","v":0.48333333333333334},{"$f":"Particulates!M35","v":25.4},{"$f":"Particulates!L35","v":0.87499999999999989},null,null,null,null,null,null,"Oxides of nitrogen","Daily mean","180 mg/m3 "]
["Total Organic Carbon ","Daily mean","10 mg/m3 ",{"$f":"TOC!O19","v":1.9},{"$f":"TOC!N19","v":0.33333333333333331},{"$f":"TOC!O34","v":2.8},{"$f":"TOC!N34","v":1.7750000000000001},null,null,null,null,null,null,"Particulates","Daily mean","5 mg/m3 "]
[null,"½ hourly mean","20 mg/m3 ",{"$f":"TOC!M19","v":10.9},{"$f":"TOC!L19","v":0.3666666666666667},{"$f":"TOC!M34","v":24.4},{"$f":"TOC!L34","v":1.8583333333333334},null,null,null,null,null,null,"Hydrogen chloride","Daily mean","8 mg/m3 "]
["Hydrogen chloride ","Daily mean","10 mg/m3 ",{"$f":"HCl!O19","v":8.3000000000000007},{"$f":"HCl!N19","v":5.5583333333333327},{"$f":"HCl!O35","v":8.6999999999999993},{"$f":"HCl!N35","v":6.3249999999999993},null,null,null,null,null,null,"Sulphur dioxide","Daily mean","40 mg/m3 "]
[null,"Daily mean","8 mg/m3 ",{"$f":"HCl!O20","v":5.7},{"$f":"HCl!N20","v":4.5},{"$f":"HCl!O36","v":7.1},{"$f":"HCl!N36","v":5}]
[null,"½ hourly mean","60 mg/m3 ",{"$f":"HCl!M19","v":45.4},{"$f":"HCl!L19","v":5.6000000000000005},{"$f":"HCl!M35","v":55.1},{"$f":"HCl!L35","v":6.3833333333333329},null,null,null,null,null,null,"Ammonia","Daily mean","15 mg/m3 "]
["Sulphur dioxide","Daily mean","50 mg/m3 ",{"$f":"'SO2'!O19","v":33.700000000000003},{"$f":"'SO2'!N19","v":8.7583333333333329},{"$f":"'SO2'!O35","v":32},{"$f":"'SO2'!N35","v":6.9583333333333348}]
[null,"Daily mean","40 mg/m3 ",{"$f":"'SO2'!O20","v":18.600000000000001},{"$f":"'SO2'!N20","v":8.1999999999999993},{"$f":"'SO2'!O36","v":7.5},{"$f":"'SO2'!N36","v":3.7}]
[null,"½ hourly mean","200 mg/m3 ",{"$f":"'SO2'!M19","v":179.4},{"$f":"'SO2'!L19","v":8.9249999999999989},{"$f":"'SO2'!M35","v":194.1},{"$f":"'SO2'!L35","v":11.1}]
["Carbon monoxide ","Daily mean","50 mg/m3 ",{"$f":"'CO 95% 10 min'!Q22","v":26.3},{"$f":"'CO 95% 10 min'!P22","v":11.666666666666666},{"$f":"'CO 95% 10 min'!Q37","v":19.7},{"$f":"'CO 95% 10 min'!P37","v":10.049999999999999}]
[null,"½ hourly mean *","100 mg/m3 *"]
[null,"95%ile 10-min avg *","150 mg/m3 *",{"$f":"'CO 95% 10 min'!M22","v":61.866666666666667},{"$f":"'CO 95% 10 min'!N22","v":11.708333333333334},{"$f":"'CO 95% 10 min'!M37","v":62.233333333333341},{"$f":"'CO 95% 10 min'!N37","v":10.225}]
[" Ammonia","Daily mean","No limit set until 03/12/23",{"$f":"'NH3'!O19","v":11.5},{"$f":"'NH3'!N19","v":1.9583333333333333},{"$f":"'NH3'!O35","v":24.7},{"$f":"'NH3'!N35","v":2.1333333333333333}]
[null,"Daily mean","15 mg/m3 ",{"$f":"'NH3'!O20","v":4.5},{"$f":"'NH3'!N20","v":1.6},{"$f":"'NH3'!O36","v":4.5999999999999996},{"$f":"'NH3'!N36","v":1.8}]
[]
["Comments :"]
["New WI BREF ELVs in force since the 3rd of December 2023. The table above has been modified accordingly in order to capture this change. The new ELVs stated in this table are capturing the maximum and average figures for the whole of December 2023 (since the 1st of December 2023). The rows with the ELVs prior to the new ELVs are caputuring the whole annual data (12 months)."]

{"sheet":"HCl","index":15,"n_rows":81,"n_cols":17,"rows_kept":81,"cut":false,"hidden":false,"merged":[[12,16,15,18],[53,9,65,9],[68,9,80,9],[4,9,4,14],[4,1,4,3],[4,4,4,6],[50,0,53,6],[49,0,49,6],[6,9,18,9],[22,9,34,9],[38,9,50,9],[3,16,7,18],[9,16,11,18],[18,4,18,6]]}
[{"$f":"+'Cover Page'!$B$29","v":"Annual Performance Report 2023"},null,null,null,{"$f":"+'Cover Page'!$B$33","v":"Tyseley Energy from Waste Plant"}]
[]
["Monitoring of Hydrogen Chloride emissions",null,null,"Whole Installation",null,null,"See  Notes in Cell Q3",null,null,{"$f":"+A3","v":"Monitoring of Hydrogen Chloride emissions"},null,null,null,"Per Combustion Line",null,null,"Notes:"]
[null,null,null,null,null,null,null,null,null,null,null,null,null,null,null,null,"User to add logic to complete Whole installation, Table A5:G18. From the data in Per Combustion Line, Table J6:O79, subject to No. of lines installed"]
["mg/Nm3","1/2 Hourly Reference Periods",null,null,"Daily Reference Periods"]
[{"$f":"+'Cover Page'!C39","v":2023},"1/2 hourly HCl ELV","Monthly 1/2 hourly mean","Highest 1/2 hourly maximum","Daily HCl ELV*","Monthly daily mean","Highest daily maximum",null,null,{"$f":"+A6","v":2023},"mg/Nm3","Monthly 1/2 hourly mean","Monthly 1/2 hourly maximum","Monthly daily mean","Monthly daily maximum"]
["Jan",60,{"$f":"AVERAGE(L7,L23)","v":5.6},{"$f":"MAX(M7,M23)","v":37.9},10,{"$f":"AVERAGE(N7,N23)","v":5.55},{"$f":"MAX(O7,O23)","v":7.2},null,null,"A1","Jan",5.3,37.9,5.3,6.7]
["Feb",60,6,46.5,10,5.9499999999999993,7.9,null,null,null,"Feb",5.6,45.3,5.6,6.7]
["Mar",60,6.3000000000000007,42.9,10,6.25,8.1,null,null,null,"Mar",5.9,32.200000000000003,5.8,8,null,"Whole Installation table A5:G18:"]
["Apr",60,6.6999999999999993,55.1,10,6.65,8.3000000000000007,null,null,null,"Apr",6.3,34.4,6.3,8.3000000000000007,null,"Mean: for 1/2 hourly and daily periods calculate mean of values across all operational combustion lines for the month"]
["May",60,6.35,34,10,6.3000000000000007,7.7,null,null,null,"May",6,31.6,5.9,7.7]
["Jun",60,4.7,27.1,10,4.4499999999999993,7.5,null,null,null,"Jun",3.4,14.1,3.3,5.5]
["Jul",60,5.9,39.700000000000003,10,5.85,7.5,null,null,null,"Jul",5.8,27.9,5.8,7.5,null,"Maximum: for 1/2 hourly and daily periods use the highest value across all operational combustion lines for the month"]
["Aug",60,6.25,29.1,10,6.25,7.5,null,null,null,"Aug",5.9,12.2,5.8,7.1]
["Sep",60,6.8000000000000007,45.3,10,6.8000000000000007,8.3000000000000007,null,null,null,"Sep",6.7,41,6.7,7.6]
["Oct",60,6.2,45.4,10,6.2,7.9,null,null,null,"Oct",5.7,45.4,5.7,7.3]
["Nov",60,6.35,48.5,10,6.3,8.6999999999999993,null,null,null,"Nov",6.1,45.3,6,8.1]
["Dec",60,4.75,34.200000000000003,8,4.75,7.1,null,null,null,"Dec",4.5,32.1,4.5,5.7]
[null,null,null,null,"* ELV reduced to 8 mg/Nm3 on 3 December 2023",null,null,null,null,null,"Annual",{"$f":"AVERAGE(L7:L18)","v":5.6000000000000005},{"$f":"MAX(M7:M18)","v":45.4},{"$f":"AVERAGE(N7:N18)","v":5.5583333333333327},{"$f":"MAX(O7:O18)","v":8.3000000000000007}]
[null,null,null,null,null,null,null,null,null,null,"Dec",4.5,32.1,4.5,5.7]
[]
[null,null,null,null,null,null,null,null,null,{"$f":"+A6","v":2023},"mg/Nm3","Monthly 1/2 hourly mean","Monthly 1/2 hourly maximum","Monthly daily mean","Monthly daily maximum"]
[null,null,null,null,null,null,null,null,null,"A2","Jan",5.9,29.1,5.8,7.2]
[null,null,null,null,null,null,null,null,null,null,"Feb",6.4,46.5,6.3,7.9]
[null,null,null,null,null,null,null,null,null,null,"Mar",6.7,42.9,6.7,8.1]
[null,null,null,null,null,null,null,null,null,null,"Apr",7.1,55.1,7,8.3000000000000007]
[null,null,null,null,null,null,null,null,null,null,"May",6.7,34,6.7,7.7]
[null,null,null,null,null,null,null,null,null,null,"Jun",6,27.1,5.6,7.5]
[null,null,null,null,null,null,null,null,null,null,"Jul",6,39.700000000000003,5.9,7.3]
[null,null,null,null,null,null,null,null,null,null,"Aug",6.6,29.1,6.7,7.5]
[null,null,null,null,null,null,null,null,null,null,"Sep",6.9,45.3,6.9,8.3000000000000007]
[null,null,null,null,null,null,null,null,null,null,"Oct",6.7,31.1,6.7,7.9]
[null,null,null,null,null,null,null,null,null,null,"Nov",6.6,48.5,6.6,8.6999999999999993]
[null,null,null,null,null,null,null,null,null,null,"Dec",5,34.200000000000003,5,7.1]
[null,null,null,null,null,null,null,null,null,null,"Annual",{"$f":"AVERAGE(L23:L34)","v":6.3833333333333329},{"$f":"MAX(M23:M34)","v":55.1},{"$f":"AVERAGE(N23:N34)","v":6.3249999999999993},{"$f":"MAX(O23:O34)","v":8.6999999999999993}]
[null,null,null,null,null,null,null,null,null,null,"Dec",5,34.200000000000003,5,7.1]
[]
[null,null,null,null,null,null,null,null,null,{"$f":"+A6","v":2023},"mg/Nm3","Monthly 1/2 hourly mean","Monthly 1/2 hourly maximum","Monthly daily mean","Monthly daily maximum"]
[null,null,null,null,null,null,null,null,null,"A3","Jan"]
[null,null,null,null,null,null,null,null,null,null,"Feb"]
[null,null,null,null,null,null,null,null,null,null,"Mar"]
[null,null,null,null,null,null,null,null,null,null,"Apr"]
[null,null,null,null,null,null,null,null,null,null,"May"]
[null,null,null,null,null,null,null,null,null,null,"Jun"]
[null,null,null,null,null,null,null,null,null,null,"Jul"]
[null,null,null,null,null,null,null,null,null,null,"Aug"]
[null,null,null,null,null,null,null,null,null,null,"Sep"]
[null,null,null,null,null,null,null,null,null,null,"Oct"]
[null,null,null,null,null,null,null,null,null,null,"Nov"]
["Comments :",null,null,null,null,null,null,null,null,null,"Dec"]
[null,null,null,null,null,null,null,null,null,null,"Annual",{"$f":"AVERAGE(L39:L50)","v":{"$error":"#DIV/0!"}},{"$f":"MAX(M39:M50)","v":0},{"$f":"AVERAGE(N39:N50)","v":{"$error":"#DIV/0!"}},{"$f":"MAX(O39:O50)","v":0}]
[]
[null,null,null,null,null,null,null,null,null,{"$f":"+A6","v":2023},"mg/Nm3","Monthly 1/2 hourly mean","Monthly 1/2 hourly maximum","Monthly daily mean","Monthly daily maximum"]
[null,null,null,null,null,null,null,null,null,"A4","Jan"]
[null,null,null,null,null,null,null,null,null,null,"Feb"]
[null,null,null,null,null,null,null,null,null,null,"Mar"]
[null,null,null,null,null,null,null,null,null,null,"Apr"]
[null,null,null,null,null,null,null,null,null,null,"May"]
[null,null,null,null,null,null,null,null,null,null,"Jun"]
[null,null,null,null,null,null,null,null,null,null,"Jul"]
[null,null,null,null,null,null,null,null,null,null,"Aug"]
[null,null,null,null,null,null,null,null,null,null,"Sep"]
[null,null,null,null,null,null,null,null,null,null,"Oct"]
[null,null,null,null,null,null,null,null,null,null,"Nov"]
[null,null,null,null,null,null,null,null,null,null,"Dec"]
[null,null,null,null,null,null,null,null,null,null,"Annual",{"$f":"AVERAGE(L54:L65)","v":{"$error":"#DIV/0!"}},{"$f":"MAX(M54:M65)","v":0},{"$f":"AVERAGE(N54:N65)","v":{"$error":"#DIV/0!"}},{"$f":"MAX(O54:O65)","v":0}]
[]
[null,null,null,null,null,null,null,null,null,{"$f":"+A6","v":2023},"mg/Nm3","Monthly 1/2 hourly mean","Monthly 1/2 hourly maximum","Monthly daily mean","Monthly daily maximum"]
[null,null,null,null,null,null,null,null,null,"A5","Jan"]
[null,null,null,null,null,null,null,null,null,null,"Feb"]
[null,null,null,null,null,null,null,null,null,null,"Mar"]
[null,null,null,null,null,null,null,null,null,null,"Apr"]
[null,null,null,null,null,null,null,null,null,null,"May"]
[null,null,null,null,null,null,null,null,null,null,"Jun"]
[null,null,null,null,null,null,null,null,null,null,"Jul"]
[null,null,null,null,null,null,null,null,null,null,"Aug"]
[null,null,null,null,null,null,null,null,null,null,"Sep"]
[null,null,null,null,null,null,null,null,null,null,"Oct"]
[null,null,null,null,null,null,null,null,null,null,"Nov"]
[null,null,null,null,null,null,null,null,null,null,"Dec"]
[null,null,null,null,null,null,null,null,null,null,"Annual",{"$f":"AVERAGE(L69:L80)","v":{"$error":"#DIV/0!"}},{"$f":"MAX(M69:M80)","v":0},{"$f":"AVERAGE(N69:N80)","v":{"$error":"#DIV/0!"}},{"$f":"MAX(O69:O80)","v":0}]

{"sheet":"SO2","index":16,"n_rows":81,"n_cols":17,"rows_kept":81,"cut":false,"hidden":false,"merged":[[3,16,7,18],[9,16,11,18],[12,16,15,18],[68,9,80,9],[4,1,4,3],[4,4,4,6],[4,9,4,14],[6,9,18,9],[22,9,34,9],[38,9,50,9],[49,0,49,6],[50,0,53,6],[53,9,65,9],[18,4,18,6]]}
[{"$f":"+'Cover Page'!$B$29","v":"Annual Performance Report 2023"},null,null,null,{"$f":"+'Cover Page'!$B$33","v":"Tyseley Energy from Waste Plant"}]
[]
["Monitoring of Sulphur dioxide emissions",null,null,"Whole Installation",null,null,"See  Notes in Cell Q3",null,null,{"$f":"+A3","v":"Monitoring of Sulphur dioxide emissions"},null,null,null,"Per Combustion Line",null,null,"Notes:"]
[null,null,null,null,null,null,null,null,null,null,null,null,null,null,null,null,"User to add logic to complete Whole installation, Table A5:G18. From the data in Per Combustion Line, Table J6:O79, subject to No. of lines installed"]
["mg/Nm3","1/2 Hourly Reference Periods",null,null,"Daily Reference Periods"]
[{"$f":"+'Cover Page'!C39","v":2023},"1/2 hourly SO2 ELV","Monthly 1/2 hourly mean","Highest 1/2 hourly maximum","Daily SO2 ELV*","Monthly daily mean","Highest daily maximum",null,null,{"$f":"+A6","v":2023},"mg/Nm3","Monthly 1/2 hourly mean","Monthly 1/2 hourly maximum","Monthly daily mean","Monthly daily maximum"]
["Jan",200,{"$f":"AVERAGE(L7,L23)","v":4.0999999999999996},{"$f":"MAX(M7,M23)","v":71.2},50,{"$f":"AVERAGE(N7,N23)","v":4},{"$f":"MAX(O7,O23)","v":9.8000000000000007},null,null,"A1","Jan",4.0999999999999996,56.3,4,7.9]
["Feb",200,{"$f":"AVERAGE(L8,L24)","v":31},{"$f":"MAX(M8,M24)","v":113.5},50,{"$f":"AVERAGE(N8,N24)","v":5.95},{"$f":"MAX(O8,O24)","v":13.4},null,null,null,"Feb",6.5,113.5,6.4,13.4]
["Mar",200,5.9,131,50,5.8,24.1,null,null,null,"Mar",7.5,131,7.3,24.1,null,"Whole Installation table A5:G18:"]
["Apr",200,7.3,170.3,50,7.25,18,null,null,null,"Apr",6.8,132.1,6.7,17.3,null,"Mean: for 1/2 hourly and daily periods calculate mean of values across all operational combustion lines for the month"]
["May",200,5.55,194.1,50,5.55,16.7,null,null,null,"May",5.0999999999999996,65.8,5.0999999999999996,16.7]
["Jun",200,21.15,146.19999999999999,50,21,33.700000000000003,null,null,null,"Jun",24.8,146.19999999999999,23.4,33.700000000000003]
["Jul",200,11.25,179.4,50,11.3,32,null,null,null,"Jul",11.3,179.4,11.4,22.8,null,"Maximum: for 1/2 hourly and daily periods use the highest value across all operational combustion lines for the month"]
["Aug",200,10.050000000000001,146.6,50,9.65,26.8,null,null,null,"Aug",11,146.6,10.8,26.8]
["Sep",200,4.1500000000000004,78.2,50,4.1500000000000004,9.6999999999999993,null,null,null,"Sep",4.7,78.2,4.7,9.6999999999999993]
["Oct",200,5,142.80000000000001,50,4.95,11.2,null,null,null,"Oct",5.6,142.80000000000001,5.5,11.2]
["Nov",200,8.75,152.80000000000001,50,8.75,23.6,null,null,null,"Nov",11.5,152.80000000000001,11.6,23.6]
["Dec",200,5.9499999999999993,129.6,40,5.9499999999999993,18.600000000000001,null,null,null,"Dec",8.1999999999999993,129.6,8.1999999999999993,18.600000000000001]
[null,null,null,null,"* ELV reduced to 40 mg/Nm3 on 3 December 2023",null,null,null,null,null,"Annual",{"$f":"AVERAGE(L7:L18)","v":8.9249999999999989},{"$f":"MAX(M7:M18)","v":179.4},{"$f":"AVERAGE(N7:N18)","v":8.7583333333333329},{"$f":"MAX(O7:O18)","v":33.700000000000003}]
[null,null,null,null,null,null,null,null,null,null,"Dec",8.1999999999999993,129.6,8.1999999999999993,18.600000000000001]
[]
[null,null,null,null,null,null,null,null,null,{"$f":"+A6","v":2023},"mg/Nm3","Monthly 1/2 hourly mean","Monthly 1/2 hourly maximum","Monthly daily mean","Monthly daily maximum"]
[null,null,null,null,null,null,null,null,null,"A2","Jan",4.0999999999999996,71.2,4,9.8000000000000007]
[null,null,null,null,null,null,null,null,null,null,"Feb",55.5,97.8,5.5,13.2]
[null,null,null,null,null,null,null,null,null,null,"Mar",4.3,100.6,4.3,9.1]
[null,null,null,null,null,null,null,null,null,null,"Apr",7.8,170.3,7.8,18]
[null,null,null,null,null,null,null,null,null,null,"May",6,194.1,6,14.1]
[null,null,null,null,null,null,null,null,null,null,"Jun",17.5,128.9,18.600000000000001,30.8]
[null,null,null,null,null,null,null,null,null,null,"Jul",11.2,132.30000000000001,11.2,32]
[null,null,null,null,null,null,null,null,null,null,"Aug",9.1,137.69999999999999,8.5,20]
[null,null,null,null,null,null,null,null,null,null,"Sep",3.6,48.6,3.6,6.7]
[null,null,null,null,null,null,null,null,null,null,"Oct",4.4000000000000004,72.8,4.4000000000000004,8.6]
[null,null,null,null,null,null,null,null,null,null,"Nov",6,118.5,5.9,13.2]
[null,null,null,null,null,null,null,null,null,null,"Dec",3.7,129,3.7,7.5]
[null,null,null,null,null,null,null,null,null,null,"Annual",{"$f":"AVERAGE(L23:L34)","v":11.1},{"$f":"MAX(M23:M34)","v":194.1},{"$f":"AVERAGE(N23:N34)","v":6.9583333333333348},{"$f":"MAX(O23:O34)","v":32}]
[null,null,null,null,null,null,null,null,null,null,"Dec",3.7,129,3.7,7.5]
[]
[null,null,null,null,null,null,null,null,null,{"$f":"+A6","v":2023},"mg/Nm3","Monthly 1/2 hourly mean","Monthly 1/2 hourly maximum","Monthly daily mean","Monthly daily maximum"]
[null,null,null,null,null,null,null,null,null,"A3","Jan"]
[null,null,null,null,null,null,null,null,null,null,"Feb"]
[null,null,null,null,null,null,null,null,null,null,"Mar"]
[null,null,null,null,null,null,null,null,null,null,"Apr"]
[null,null,null,null,null,null,null,null,null,null,"May"]
[null,null,null,null,null,null,null,null,null,null,"Jun"]
[null,null,null,null,null,null,null,null,null,null,"Jul"]
[null,null,null,null,null,null,null,null,null,null,"Aug"]
[null,null,null,null,null,null,null,null,null,null,"Sep"]
[null,null,null,null,null,null,null,null,null,null,"Oct"]
[null,null,null,null,null,null,null,null,null,null,"Nov"]
["Comments :",null,null,null,null,null,null,null,null,null,"Dec"]
[null,null,null,null,null,null,null,null,null,null,"Annual",{"$f":"AVERAGE(L39:L50)","v":{"$error":"#DIV/0!"}},{"$f":"MAX(M39:M50)","v":0},{"$f":"AVERAGE(N39:N50)","v":{"$error":"#DIV/0!"}},{"$f":"MAX(O39:O50)","v":0}]
[]
[null,null,null,null,null,null,null,null,null,{"$f":"+A6","v":2023},"mg/Nm3","Monthly 1/2 hourly mean","Monthly 1/2 hourly maximum","Monthly daily mean","Monthly daily maximum"]
[null,null,null,null,null,null,null,null,null,"A4","Jan"]
[null,null,null,null,null,null,null,null,null,null,"Feb"]
[null,null,null,null,null,null,null,null,null,null,"Mar"]
[null,null,null,null,null,null,null,null,null,null,"Apr"]
[null,null,null,null,null,null,null,null,null,null,"May"]
[null,null,null,null,null,null,null,null,null,null,"Jun"]
[null,null,null,null,null,null,null,null,null,null,"Jul"]
[null,null,null,null,null,null,null,null,null,null,"Aug"]
[null,null,null,null,null,null,null,null,null,null,"Sep"]
[null,null,null,null,null,null,null,null,null,null,"Oct"]
[null,null,null,null,null,null,null,null,null,null,"Nov"]
[null,null,null,null,null,null,null,null,null,null,"Dec"]
[null,null,null,null,null,null,null,null,null,null,"Annual",{"$f":"AVERAGE(L54:L65)","v":{"$error":"#DIV/0!"}},{"$f":"MAX(M54:M65)","v":0},{"$f":"AVERAGE(N54:N65)","v":{"$error":"#DIV/0!"}},{"$f":"MAX(O54:O65)","v":0}]
[]
[null,null,null,null,null,null,null,null,null,{"$f":"+A6","v":2023},"mg/Nm3","Monthly 1/2 hourly mean","Monthly 1/2 hourly maximum","Monthly daily mean","Monthly daily maximum"]
[null,null,null,null,null,null,null,null,null,"A5","Jan"]
[null,null,null,null,null,null,null,null,null,null,"Feb"]
[null,null,null,null,null,null,null,null,null,null,"Mar"]
[null,null,null,null,null,null,null,null,null,null,"Apr"]
[null,null,null,null,null,null,null,null,null,null,"May"]
[null,null,null,null,null,null,null,null,null,null,"Jun"]
[null,null,null,null,null,null,null,null,null,null,"Jul"]
[null,null,null,null,null,null,null,null,null,null,"Aug"]
[null,null,null,null,null,null,null,null,null,null,"Sep"]
[null,null,null,null,null,null,null,null,null,null,"Oct"]
[null,null,null,null,null,null,null,null,null,null,"Nov"]
[null,null,null,null,null,null,null,null,null,null,"Dec"]
[null,null,null,null,null,null,null,null,null,null,"Annual",{"$f":"AVERAGE(L69:L80)","v":{"$error":"#DIV/0!"}},{"$f":"MAX(M69:M80)","v":0},{"$f":"AVERAGE(N69:N80)","v":{"$error":"#DIV/0!"}},{"$f":"MAX(O69:O80)","v":0}]

{"sheet":"NOx","index":17,"n_rows":81,"n_cols":17,"rows_kept":81,"cut":false,"hidden":false,"merged":[[3,16,7,18],[9,16,11,18],[12,16,15,18],[68,9,80,9],[4,1,4,3],[4,4,4,6],[4,9,4,14],[6,9,18,9],[22,9,34,9],[38,9,50,9],[49,0,49,6],[50,0,53,6],[53,9,65,9],[18,4,18,6]]}
[{"$f":"+'Cover Page'!$B$29","v":"Annual Performance Report 2023"},null,null,null,{"$f":"+'Cover Page'!$B$33","v":"Tyseley Energy from Waste Plant"}]
[]
["Monitoring of Oxides of Nitrogen emissions",null,null,"Whole Installation",null,null,"See  Notes in Cell Q3",null,null,{"$f":"+A3","v":"Monitoring of Oxides of Nitrogen emissions"},null,null,null,"Per Combustion Line",null,null,"Notes:"]
[null,null,null,null,null,null,null,null,null,null,null,null,null,null,null,null,"User to add logic to complete Whole installation, Table A5:G18. From the data in Per Combustion Line, Table J6:O79, subject to No. of lines installed"]
["mg/Nm3","1/2 Hourly Reference Periods",null,null,"Daily Reference Periods"]
[{"$f":"+'Cover Page'!C39","v":2023},"1/2 hourly NOx ELV","Monthly 1/2 hourly mean","Highest 1/2 hourly maximum","Daily NOx ELV*","Monthly daily mean","Highest daily maximum",null,null,{"$f":"+A6","v":2023},"mg/Nm3","Monthly 1/2 hourly mean","Monthly 1/2 hourly maximum","Monthly daily mean","Monthly daily maximum"]
["Jan",400,{"$f":"AVERAGE(L7,L23)","v":151.94999999999999},{"$f":"MAX(M7,M23)","v":213.6},200,{"$f":"AVERAGE(N7,N23)","v":151.89999999999998},{"$f":"MAX(O7,O23)","v":175.3},null,null,"A1","Jan",158.69999999999999,213.6,158.6,175.3]
["Feb",400,{"$f":"AVERAGE(L8,L24)","v":152.5},{"$f":"MAX(M8,M24)","v":215.8},200,{"$f":"AVERAGE(N8,N24)","v":152.5},{"$f":"MAX(O8,O24)","v":170.3},null,null,null,"Feb",157.4,213.9,157.4,170.3]
["Mar",400,160.19999999999999,248.2,200,160.1,178.4,null,null,null,"Mar",162.69999999999999,248.2,162.5,178.4,null,"Whole Installation table A5:G18:"]
["Apr",400,162.19999999999999,242.9,200,162.19999999999999,183.9,null,null,null,"Apr",162.6,242.9,162.5,183.9,null,"Mean: for 1/2 hourly and daily periods calculate mean of values across all operational combustion lines for the month"]
["May",400,166.2,233.4,200,166.1,174.3,null,null,null,"May",165.3,233.4,165.2,173.6]
["Jun",400,168.95,318.10000000000002,200,169.05,188.9,null,null,null,"Jun",171.3,221.6,170.8,174.8]
["Jul",400,172.1,258.89999999999998,200,172,181.7,null,null,null,"Jul",172,251.1,171.9,180.8,null,"Maximum: for 1/2 hourly and daily periods use the highest value across all operational combustion lines for the month"]
["Aug",400,150.55000000000001,228.9,200,150.05000000000001,171.1,null,null,null,"Aug",150.5,228.9,150.19999999999999,171.1]
["Sep",400,141.35000000000002,201.8,200,141.19999999999999,154.9,null,null,null,"Sep",140.4,199.9,140.19999999999999,154.9]
["Oct",400,167.75,264.5,200,167.8,181.1,null,null,null,"Oct",167.9,264.5,168,180.1]
["Nov",400,176.5,214.1,200,176.39999999999998,180.9,null,null,null,"Nov",176.4,214.1,176.2,180.1]
["Dec",400,158.6,228.4,180,158.6,170.2,null,null,null,"Dec",158.19999999999999,228.4,158.19999999999999,169.9]
[null,null,null,null,"* ELV reduced to 180 mg/Nm3 on 3 December 2023",null,null,null,null,null,"Annual",{"$f":"AVERAGE(L7:L18)","v":161.95000000000002},{"$f":"MAX(M7:M18)","v":264.5},{"$f":"AVERAGE(N7:N18)","v":161.80833333333337},{"$f":"MAX(O7:O18)","v":183.9}]
[null,null,null,null,null,null,null,null,null,null,"Dec",158.19999999999999,228.4,158.19999999999999,169.9]
[]
[null,null,null,null,null,null,null,null,null,{"$f":"+A6","v":2023},"mg/Nm3","Monthly 1/2 hourly mean","Monthly 1/2 hourly maximum","Monthly daily mean","Monthly daily maximum"]
[null,null,null,null,null,null,null,null,null,"A2","Jan",145.19999999999999,212.8,145.19999999999999,155.69999999999999]
[null,null,null,null,null,null,null,null,null,null,"Feb",147.6,215.8,147.6,159.5]
[null,null,null,null,null,null,null,null,null,null,"Mar",157.69999999999999,239.5,157.69999999999999,174.8]
[null,null,null,null,null,null,null,null,null,null,"Apr",161.80000000000001,241.6,161.9,172.4]
[null,null,null,null,null,null,null,null,null,null,"May",167.1,211.3,167,174.3]
[null,null,null,null,null,null,null,null,null,null,"Jun",166.6,318.10000000000002,167.3,188.9]
[null,null,null,null,null,null,null,null,null,null,"Jul",172.2,258.89999999999998,172.1,181.7]
[null,null,null,null,null,null,null,null,null,null,"Aug",150.6,218.3,149.9,170.4]
[null,null,null,null,null,null,null,null,null,null,"Sep",142.30000000000001,201.8,142.19999999999999,150.4]
[null,null,null,null,null,null,null,null,null,null,"Oct",167.6,240.5,167.6,181.1]
[null,null,null,null,null,null,null,null,null,null,"Nov",176.6,208.8,176.6,180.9]
[null,null,null,null,null,null,null,null,null,null,"Dec",159,216.6,159,170.2]
[null,null,null,null,null,null,null,null,null,null,"Annual",{"$f":"AVERAGE(L23:L34)","v":159.52499999999998},{"$f":"MAX(M23:M34)","v":318.10000000000002},{"$f":"AVERAGE(N23:N34)","v":159.50833333333333},{"$f":"MAX(O23:O34)","v":188.9}]
[null,null,null,null,null,null,null,null,null,null,"Dec",159,216.6,159,170.2]
[]
[null,null,null,null,null,null,null,null,null,{"$f":"+A6","v":2023},"mg/Nm3","Monthly 1/2 hourly mean","Monthly 1/2 hourly maximum","Monthly daily mean","Monthly daily maximum"]
[null,null,null,null,null,null,null,null,null,"A3","Jan"]
[null,null,null,null,null,null,null,null,null,null,"Feb"]
[null,null,null,null,null,null,null,null,null,null,"Mar"]
[null,null,null,null,null,null,null,null,null,null,"Apr"]
[null,null,null,null,null,null,null,null,null,null,"May"]
[null,null,null,null,null,null,null,null,null,null,"Jun"]
[null,null,null,null,null,null,null,null,null,null,"Jul"]
[null,null,null,null,null,null,null,null,null,null,"Aug"]
[null,null,null,null,null,null,null,null,null,null,"Sep"]
[null,null,null,null,null,null,null,null,null,null,"Oct"]
[null,null,null,null,null,null,null,null,null,null,"Nov"]
["Comments :",null,null,null,null,null,null,null,null,null,"Dec"]
[null,null,null,null,null,null,null,null,null,null,"Annual",{"$f":"AVERAGE(L39:L50)","v":{"$error":"#DIV/0!"}},{"$f":"MAX(M39:M50)","v":0},{"$f":"AVERAGE(N39:N50)","v":{"$error":"#DIV/0!"}},{"$f":"MAX(O39:O50)","v":0}]
[]
[null,null,null,null,null,null,null,null,null,{"$f":"+A6","v":2023},"mg/Nm3","Monthly 1/2 hourly mean","Monthly 1/2 hourly maximum","Monthly daily mean","Monthly daily maximum"]
[null,null,null,null,null,null,null,null,null,"A4","Jan"]
[null,null,null,null,null,null,null,null,null,null,"Feb"]
[null,null,null,null,null,null,null,null,null,null,"Mar"]
[null,null,null,null,null,null,null,null,null,null,"Apr"]
[null,null,null,null,null,null,null,null,null,null,"May"]
[null,null,null,null,null,null,null,null,null,null,"Jun"]
[null,null,null,null,null,null,null,null,null,null,"Jul"]
[null,null,null,null,null,null,null,null,null,null,"Aug"]
[null,null,null,null,null,null,null,null,null,null,"Sep"]
[null,null,null,null,null,null,null,null,null,null,"Oct"]
[null,null,null,null,null,null,null,null,null,null,"Nov"]
[null,null,null,null,null,null,null,null,null,null,"Dec"]
[null,null,null,null,null,null,null,null,null,null,"Annual",{"$f":"AVERAGE(L54:L65)","v":{"$error":"#DIV/0!"}},{"$f":"MAX(M54:M65)","v":0},{"$f":"AVERAGE(N54:N65)","v":{"$error":"#DIV/0!"}},{"$f":"MAX(O54:O65)","v":0}]
[]
[null,null,null,null,null,null,null,null,null,{"$f":"+A6","v":2023},"mg/Nm3","Monthly 1/2 hourly mean","Monthly 1/2 hourly maximum","Monthly daily mean","Monthly daily maximum"]
[null,null,null,null,null,null,null,null,null,"A5","Jan"]
[null,null,null,null,null,null,null,null,null,null,"Feb"]
[null,null,null,null,null,null,null,null,null,null,"Mar"]
[null,null,null,null,null,null,null,null,null,null,"Apr"]
[null,null,null,null,null,null,null,null,null,null,"May"]
[null,null,null,null,null,null,null,null,null,null,"Jun"]
[null,null,null,null,null,null,null,null,null,null,"Jul"]
[null,null,null,null,null,null,null,null,null,null,"Aug"]
[null,null,null,null,null,null,null,null,null,null,"Sep"]
[null,null,null,null,null,null,null,null,null,null,"Oct"]
[null,null,null,null,null,null,null,null,null,null,"Nov"]
[null,null,null,null,null,null,null,null,null,null,"Dec"]
[null,null,null,null,null,null,null,null,null,null,"Annual",{"$f":"AVERAGE(L69:L80)","v":{"$error":"#DIV/0!"}},{"$f":"MAX(M69:M80)","v":0},{"$f":"AVERAGE(N69:N80)","v":{"$error":"#DIV/0!"}},{"$f":"MAX(O69:O80)","v":0}]

{"sheet":"TOC","index":18,"n_rows":79,"n_cols":17,"rows_kept":79,"cut":false,"hidden":false,"merged":[[3,16,7,18],[9,16,11,18],[12,16,15,18],[66,9,78,9],[4,1,4,3],[4,4,4,6],[4,9,4,14],[6,9,18,9],[21,9,33,9],[36,9,48,9],[47,0,47,6],[48,0,51,6],[51,9,63,9]]}
[{"$f":"+'Cover Page'!$B$29","v":"Annual Performance Report 2023"},null,null,null,{"$f":"+'Cover Page'!$B$33","v":"Tyseley Energy from Waste Plant"}]
[]
["Monitoring of Total organic carbon emissions",null,null,"Whole Installation",null,null,"See  Notes in Cell Q3",null,null,{"$f":"+A3","v":"Monitoring of Total organic carbon emissions"},null,null,null,"Per Combustion Line",null,null,"Notes:"]
[null,null,null,null,null,null,null,null,null,null,null,null,null,null,null,null,"User to add logic to complete Whole installation, Table A5:G18. From the data in Per Combustion Line, Table J6:O79, subject to No. of lines installed"]
["mg/Nm3","1/2 Hourly Reference Periods",null,null,"Daily Reference Periods"]
[{"$f":"+'Cover Page'!C39","v":2023},"1/2 hourly TOC ELV","Monthly 1/2 hourly mean","Highest 1/2 hourly maximum","Daily TOC ELV","Monthly daily mean","Highest daily maximum",null,null,{"$f":"+A6","v":2023},"mg/Nm3","Monthly 1/2 hourly mean","Monthly 1/2 hourly maximum","Monthly daily mean","Monthly daily maximum"]
["Jan",20,{"$f":"AVERAGE(L7,L22)","v":0.9},{"$f":"MAX(M7,M22)","v":8.8000000000000007},10,{"$f":"AVERAGE(N7,N22)","v":0.9},{"$f":"MAX(O7,O22)","v":2},null,null,"A1","Jan",0.2,8.8000000000000007,0.2,0.6]
["Feb",20,{"$f":"AVERAGE(L8,L23)","v":0.95},{"$f":"MAX(M8,M23)","v":3.7},10,{"$f":"AVERAGE(N8,N23)","v":0.9},{"$f":"MAX(O8,O23)","v":1.9},null,null,null,"Feb",0.2,2.2000000000000002,0.2,0.4]
["Mar",20,1,7.5,10,0.95,2,null,null,null,"Mar",0.2,1.7,0.2,0.4,null,"Whole Installation table A5:G18:"]
["Apr",20,1.05,8.1,10,1.05,2.8,null,null,null,"Apr",0.3,4.7,0.3,0.7,null,"Mean: for 1/2 hourly and daily periods calculate mean of values across all operational combustion lines for the month"]
["May",20,1.2999999999999998,6.5,10,1.25,2.4,null,null,null,"May",0.7,5.3,0.7,1.3]
["Jun",20,1.4000000000000001,9.4,10,1.2,2.8,null,null,null,"Jun",0.6,4.3,0.4,0.8]
["Jul",20,1.25,10.9,10,1.1499999999999999,2.2999999999999998,null,null,null,"Jul",0.5,10.9,0.4,1.9,null,"Maximum: for 1/2 hourly and daily periods use the highest value across all operational combustion lines for the month"]
["Aug",20,1.3,24.4,10,1.1499999999999999,2.2999999999999998,null,null,null,"Aug",0.5,5,0.4,0.9]
["Sep",20,1.05,7.8,10,1,2,null,null,null,"Sep",0.3,2.7,0.3,1]
["Oct",20,1.1000000000000001,10.6,10,1.1000000000000001,2.1,null,null,null,"Oct",0.4,4.4000000000000004,0.4,0.8]
["Nov",20,1.05,7,10,1.05,2.2999999999999998,null,null,null,"Nov",0.3,2.4,0.3,0.6]
["Dec",20,1,10.8,10,0.95,2.2000000000000002,null,null,null,"Dec",0.2,4.2,0.2,0.4]
[null,null,null,null,null,null,null,null,null,null,"Annual",{"$f":"AVERAGE(L7:L18)","v":0.3666666666666667},{"$f":"MAX(M7:M18)","v":10.9},{"$f":"AVERAGE(N7:N18)","v":0.33333333333333331},{"$f":"MAX(O7:O18)","v":1.9}]
[]
[null,null,null,null,null,null,null,null,null,{"$f":"+A6","v":2023},"mg/Nm3","Monthly 1/2 hourly mean","Monthly 1/2 hourly maximum","Monthly daily mean","Monthly daily maximum"]
[null,null,null,null,null,null,null,null,null,"A2","Jan",1.6,4.0999999999999996,1.6,2]
[null,null,null,null,null,null,null,null,null,null,"Feb",1.7,3.7,1.6,1.9]
[null,null,null,null,null,null,null,null,null,null,"Mar",1.8,7.5,1.7,2]
[null,null,null,null,null,null,null,null,null,null,"Apr",1.8,8.1,1.8,2.8]
[null,null,null,null,null,null,null,null,null,null,"May",1.9,6.5,1.8,2.4]
[null,null,null,null,null,null,null,null,null,null,"Jun",2.2000000000000002,9.4,2,2.8]
[null,null,null,null,null,null,null,null,null,null,"Jul",2,10.5,1.9,2.2999999999999998]
[null,null,null,null,null,null,null,null,null,null,"Aug",2.1,24.4,1.9,2.2999999999999998]
[null,null,null,null,null,null,null,null,null,null,"Sep",1.8,7.8,1.7,2]
[null,null,null,null,null,null,null,null,null,null,"Oct",1.8,10.6,1.8,2.1]
[null,null,null,null,null,null,null,null,null,null,"Nov",1.8,7,1.8,2.2999999999999998]
[null,null,null,null,null,null,null,null,null,null,"Dec",1.8,10.8,1.7,2.2000000000000002]
[null,null,null,null,null,null,null,null,null,null,"Annual",{"$f":"AVERAGE(L22:L33)","v":1.8583333333333334},{"$f":"MAX(M22:M33)","v":24.4},{"$f":"AVERAGE(N22:N33)","v":1.7750000000000001},{"$f":"MAX(O22:O33)","v":2.8}]
[]
[null,null,null,null,null,null,null,null,null,{"$f":"+A6","v":2023},"mg/Nm3","Monthly 1/2 hourly mean","Monthly 1/2 hourly maximum","Monthly daily mean","Monthly daily maximum"]
[null,null,null,null,null,null,null,null,null,"A3","Jan"]
[null,null,null,null,null,null,null,null,null,null,"Feb"]
[null,null,null,null,null,null,null,null,null,null,"Mar"]
[null,null,null,null,null,null,null,null,null,null,"Apr"]
[null,null,null,null,null,null,null,null,null,null,"May"]
[null,null,null,null,null,null,null,null,null,null,"Jun"]
[null,null,null,null,null,null,null,null,null,null,"Jul"]
[null,null,null,null,null,null,null,null,null,null,"Aug"]
[null,null,null,null,null,null,null,null,null,null,"Sep"]
[null,null,null,null,null,null,null,null,null,null,"Oct"]
[null,null,null,null,null,null,null,null,null,null,"Nov"]
["Comments :",null,null,null,null,null,null,null,null,null,"Dec"]
[null,null,null,null,null,null,null,null,null,null,"Annual",{"$f":"AVERAGE(L37:L48)","v":{"$error":"#DIV/0!"}},{"$f":"MAX(M37:M48)","v":0},{"$f":"AVERAGE(N37:N48)","v":{"$error":"#DIV/0!"}},{"$f":"MAX(O37:O48)","v":0}]
[]
[null,null,null,null,null,null,null,null,null,{"$f":"+A6","v":2023},"mg/Nm3","Monthly 1/2 hourly mean","Monthly 1/2 hourly maximum","Monthly daily mean","Monthly daily maximum"]
[null,null,null,null,null,null,null,null,null,"A4","Jan"]
[null,null,null,null,null,null,null,null,null,null,"Feb"]
[null,null,null,null,null,null,null,null,null,null,"Mar"]
[null,null,null,null,null,null,null,null,null,null,"Apr"]
[null,null,null,null,null,null,null,null,null,null,"May"]
[null,null,null,null,null,null,null,null,null,null,"Jun"]
[null,null,null,null,null,null,null,null,null,null,"Jul"]
[null,null,null,null,null,null,null,null,null,null,"Aug"]
[null,null,null,null,null,null,null,null,null,null,"Sep"]
[null,null,null,null,null,null,null,null,null,null,"Oct"]
[null,null,null,null,null,null,null,null,null,null,"Nov"]
[null,null,null,null,null,null,null,null,null,null,"Dec"]
[null,null,null,null,null,null,null,null,null,null,"Annual",{"$f":"AVERAGE(L52:L63)","v":{"$error":"#DIV/0!"}},{"$f":"MAX(M52:M63)","v":0},{"$f":"AVERAGE(N52:N63)","v":{"$error":"#DIV/0!"}},{"$f":"MAX(O52:O63)","v":0}]
[]
[null,null,null,null,null,null,null,null,null,{"$f":"+A6","v":2023},"mg/Nm3","Monthly 1/2 hourly mean","Monthly 1/2 hourly maximum","Monthly daily mean","Monthly daily maximum"]
[null,null,null,null,null,null,null,null,null,"A5","Jan"]
[null,null,null,null,null,null,null,null,null,null,"Feb"]
[null,null,null,null,null,null,null,null,null,null,"Mar"]
[null,null,null,null,null,null,null,null,null,null,"Apr"]
[null,null,null,null,null,null,null,null,null,null,"May"]
[null,null,null,null,null,null,null,null,null,null,"Jun"]
[null,null,null,null,null,null,null,null,null,null,"Jul"]
[null,null,null,null,null,null,null,null,null,null,"Aug"]
[null,null,null,null,null,null,null,null,null,null,"Sep"]
[null,null,null,null,null,null,null,null,null,null,"Oct"]
[null,null,null,null,null,null,null,null,null,null,"Nov"]
[null,null,null,null,null,null,null,null,null,null,"Dec"]
[null,null,null,null,null,null,null,null,null,null,"Annual",{"$f":"AVERAGE(L67:L78)","v":{"$error":"#DIV/0!"}},{"$f":"MAX(M67:M78)","v":0},{"$f":"AVERAGE(N67:N78)","v":{"$error":"#DIV/0!"}},{"$f":"MAX(O67:O78)","v":0}]

{"sheet":"Particulates","index":19,"n_rows":81,"n_cols":17,"rows_kept":81,"cut":false,"hidden":false,"merged":[[3,16,7,18],[9,16,11,18],[12,16,15,18],[68,9,80,9],[4,1,4,3],[4,4,4,6],[4,9,4,14],[6,9,18,9],[22,9,34,9],[38,9,50,9],[49,0,49,6],[50,0,53,6],[53,9,65,9],[18,4,18,6]]}
[{"$f":"+'Cover Page'!$B$29","v":"Annual Performance Report 2023"},null,null,null,{"$f":"+'Cover Page'!$B$33","v":"Tyseley Energy from Waste Plant"}]
[]
["Monitoring of Particulate matter emissions",null,null,"Whole Installation",null,null,"See  Notes in Cell Q3",null,null,{"$f":"+A3","v":"Monitoring of Particulate matter emissions"},null,null,null,"Per Combustion Line",null,null,"Notes:"]
[null,null,null,null,null,null,null,null,null,null,null,null,null,null,null,null,"User to add logic to complete Whole installation, Table A5:G18. From the data in Per Combustion Line, Table J6:O79, subject to No. of lines installed"]
["mg/Nm3","1/2 Hourly Reference Periods",null,null,"Daily Reference Periods"]
[{"$f":"+'Cover Page'!C39","v":2023},"1/2 hourly PM ELV","Monthly 1/2 hourly mean","Highest 1/2 hourly maximum","Daily PM ELV*","Monthly daily mean","Highest daily maximum",null,null,{"$f":"+A6","v":2023},"mg/Nm3","Monthly 1/2 hourly mean","Monthly 1/2 hourly maximum","Monthly daily mean","Monthly daily maximum"]
["Jan",30,{"$f":"AVERAGE(L7,L23)","v":0.65},{"$f":"MAX(M7,M23)","v":9.5},10,{"$f":"AVERAGE(N7,N23)","v":0.65},{"$f":"MAX(O7,O23)","v":2.6},null,null,"A1","Jan",0.9,3.1,0.9,2.6]
["Feb",30,{"$f":"AVERAGE(L8,L24)","v":1.5},{"$f":"MAX(M8,M24)","v":3.5},10,{"$f":"AVERAGE(N8,N24)","v":1.4500000000000002},{"$f":"MAX(O8,O24)","v":2.9},null,null,null,"Feb",2.2999999999999998,3.5,2.2000000000000002,2.9]
["Mar",30,0.65,19.399999999999999,10,0.65,4.5,null,null,null,"Mar",0.4,3.1,0.4,2.8,null,"Whole Installation table A5:G18:"]
["Apr",30,0.4,3.3,10,0.4,0.8,null,null,null,"Apr",0.2,1.2,0.2,0.3,null,"Mean: for 1/2 hourly and daily periods calculate mean of values across all operational combustion lines for the month"]
["May",30,0.44999999999999996,1.6,10,0.35,0.8,null,null,null,"May",0.2,1.6,0.1,0.8]
["Jun",30,1.05,25.4,10,0.95000000000000007,4.5,null,null,null,"Jun",0.3,7.1,0.1,0.4]
["Jul",30,1.1000000000000001,7.3,10,1.1000000000000001,2.6,null,null,null,"Jul",0.2,3.1,0.2,0.3,null,"Maximum: for 1/2 hourly and daily periods use the highest value across all operational combustion lines for the month"]
["Aug",30,0.60000000000000009,5.3,10,0.60000000000000009,1.9,null,null,null,"Aug",0.1,2.1,0.1,0.2]
["Sep",30,0.44999999999999996,4.8,10,0.44999999999999996,1.2,null,null,null,"Sep",0.2,2.9,0.2,0.2]
["Oct",30,0.30000000000000004,3.4,10,0.30000000000000004,0.5,null,null,null,"Oct",0.2,0.6,0.2,0.3]
["Nov",30,0.44999999999999996,1.9,10,0.35,0.7,null,null,null,"Nov",0.3,1.9,0.2,0.4]
["Dec",30,0.55000000000000004,4.2,5,0.5,3.4,null,null,null,"Dec",0.5,4.2,0.4,3.4]
[null,null,null,null,"* ELV reduced to 5 mg/Nm3 on 3 December 2023",null,null,null,null,null,"Annual",{"$f":"AVERAGE(L7:L18)","v":0.48333333333333334},{"$f":"MAX(M7:M18)","v":7.1},{"$f":"AVERAGE(N7:N18)","v":0.4333333333333334},{"$f":"MAX(O7:O18)","v":3.4}]
[null,null,null,null,null,null,null,null,null,null,"Dec",0.5,4.2,0.4,3.4]
[]
[null,null,null,null,null,null,null,null,null,{"$f":"+A6","v":2023},"mg/Nm3","Monthly 1/2 hourly mean","Monthly 1/2 hourly maximum","Monthly daily mean","Monthly daily maximum"]
[null,null,null,null,null,null,null,null,null,"A2","Jan",0.4,9.5,0.4,1.3]
[null,null,null,null,null,null,null,null,null,null,"Feb",0.7,2.1,0.7,0.8]
[null,null,null,null,null,null,null,null,null,null,"Mar",0.9,19.399999999999999,0.9,4.5]
[null,null,null,null,null,null,null,null,null,null,"Apr",0.6,3.3,0.6,0.8]
[null,null,null,null,null,null,null,null,null,null,"May",0.7,1.4,0.6,0.8]
[null,null,null,null,null,null,null,null,null,null,"Jun",1.8,25.4,1.8,4.5]
[null,null,null,null,null,null,null,null,null,null,"Jul",2,7.3,2,2.6]
[null,null,null,null,null,null,null,null,null,null,"Aug",1.1000000000000001,5.3,1.1000000000000001,1.9]
[null,null,null,null,null,null,null,null,null,null,"Sep",0.7,4.8,0.7,1.2]
[null,null,null,null,null,null,null,null,null,null,"Oct",0.4,3.4,0.4,0.5]
[null,null,null,null,null,null,null,null,null,null,"Nov",0.6,1,0.5,0.7]
[null,null,null,null,null,null,null,null,null,null,"Dec",0.6,1.7,0.6,0.7]
[null,null,null,null,null,null,null,null,null,null,"Annual",{"$f":"AVERAGE(L23:L34)","v":0.87499999999999989},{"$f":"MAX(M23:M34)","v":25.4},{"$f":"AVERAGE(N23:N34)","v":0.85833333333333328},{"$f":"MAX(O23:O34)","v":4.5}]
[null,null,null,null,null,null,null,null,null,null,"Dec",0.6,1.7,0.6,0.7]
[]
[null,null,null,null,null,null,null,null,null,{"$f":"+A6","v":2023},"mg/Nm3","Monthly 1/2 hourly mean","Monthly 1/2 hourly maximum","Monthly daily mean","Monthly daily maximum"]
[null,null,null,null,null,null,null,null,null,"A3","Jan"]
[null,null,null,null,null,null,null,null,null,null,"Feb"]
[null,null,null,null,null,null,null,null,null,null,"Mar"]
[null,null,null,null,null,null,null,null,null,null,"Apr"]
[null,null,null,null,null,null,null,null,null,null,"May"]
[null,null,null,null,null,null,null,null,null,null,"Jun"]
[null,null,null,null,null,null,null,null,null,null,"Jul"]
[null,null,null,null,null,null,null,null,null,null,"Aug"]
[null,null,null,null,null,null,null,null,null,null,"Sep"]
[null,null,null,null,null,null,null,null,null,null,"Oct"]
[null,null,null,null,null,null,null,null,null,null,"Nov"]
["Comments :",null,null,null,null,null,null,null,null,null,"Dec"]
[null,null,null,null,null,null,null,null,null,null,"Annual",{"$f":"AVERAGE(L39:L50)","v":{"$error":"#DIV/0!"}},{"$f":"MAX(M39:M50)","v":0},{"$f":"AVERAGE(N39:N50)","v":{"$error":"#DIV/0!"}},{"$f":"MAX(O39:O50)","v":0}]
[]
[null,null,null,null,null,null,null,null,null,{"$f":"+A6","v":2023},"mg/Nm3","Monthly 1/2 hourly mean","Monthly 1/2 hourly maximum","Monthly daily mean","Monthly daily maximum"]
[null,null,null,null,null,null,null,null,null,"A4","Jan"]
[null,null,null,null,null,null,null,null,null,null,"Feb"]
[null,null,null,null,null,null,null,null,null,null,"Mar"]
[null,null,null,null,null,null,null,null,null,null,"Apr"]
[null,null,null,null,null,null,null,null,null,null,"May"]
[null,null,null,null,null,null,null,null,null,null,"Jun"]
[null,null,null,null,null,null,null,null,null,null,"Jul"]
[null,null,null,null,null,null,null,null,null,null,"Aug"]
[null,null,null,null,null,null,null,null,null,null,"Sep"]
[null,null,null,null,null,null,null,null,null,null,"Oct"]
[null,null,null,null,null,null,null,null,null,null,"Nov"]
[null,null,null,null,null,null,null,null,null,null,"Dec"]
[null,null,null,null,null,null,null,null,null,null,"Annual",{"$f":"AVERAGE(L54:L65)","v":{"$error":"#DIV/0!"}},{"$f":"MAX(M54:M65)","v":0},{"$f":"AVERAGE(N54:N65)","v":{"$error":"#DIV/0!"}},{"$f":"MAX(O54:O65)","v":0}]
[]
[null,null,null,null,null,null,null,null,null,{"$f":"+A6","v":2023},"mg/Nm3","Monthly 1/2 hourly mean","Monthly 1/2 hourly maximum","Monthly daily mean","Monthly daily maximum"]
[null,null,null,null,null,null,null,null,null,"A5","Jan"]
[null,null,null,null,null,null,null,null,null,null,"Feb"]
[null,null,null,null,null,null,null,null,null,null,"Mar"]
[null,null,null,null,null,null,null,null,null,null,"Apr"]
[null,null,null,null,null,null,null,null,null,null,"May"]
[null,null,null,null,null,null,null,null,null,null,"Jun"]
[null,null,null,null,null,null,null,null,null,null,"Jul"]
[null,null,null,null,null,null,null,null,null,null,"Aug"]
[null,null,null,null,null,null,null,null,null,null,"Sep"]
[null,null,null,null,null,null,null,null,null,null,"Oct"]
[null,null,null,null,null,null,null,null,null,null,"Nov"]
[null,null,null,null,null,null,null,null,null,null,"Dec"]
[null,null,null,null,null,null,null,null,null,null,"Annual",{"$f":"AVERAGE(L69:L80)","v":{"$error":"#DIV/0!"}},{"$f":"MAX(M69:M80)","v":0},{"$f":"AVERAGE(N69:N80)","v":{"$error":"#DIV/0!"}},{"$f":"MAX(O69:O80)","v":0}]

{"sheet":"CO 0.5 hourly","index":20,"n_rows":82,"n_cols":17,"rows_kept":82,"cut":false,"hidden":true,"merged":[[4,0,5,6],[6,16,10,18],[12,16,14,18],[15,16,18,18],[69,9,81,9],[7,1,7,3],[7,4,7,6],[7,9,7,14],[9,9,21,9],[24,9,36,9],[39,9,51,9],[50,0,50,6],[51,0,54,6],[54,9,66,9]]}
[{"$f":"+'Cover Page'!$B$29","v":"Annual Performance Report 2023"},null,null,null,{"$f":"+'Cover Page'!$B$33","v":"Tyseley Energy from Waste Plant"}]
[]
["Monitoring of Carbon Monoxide (half hourly)",null,null,"Whole Installation",null,null,"See  Notes in Cell Q3",null,null,{"$f":"+A3","v":"Monitoring of Carbon Monoxide (half hourly)"},null,null,null,"Per Combustion Line",null,null,"Notes:"]
[]
["Please complete this tab for your plant if you have 1/2 hourly CO ELVs; otherwise, leave it blank and complete the CO 95% 10 min tab"]
[]
[null,null,null,null,null,null,null,null,null,null,null,null,null,null,null,null,"User to add logic to complete Whole installation, Table A5:G18. From the data in Per Combustion Line, Table J6:O79, subject to No. of lines installed"]
["mg/Nm3","1/2 Hourly Reference Periods",null,null,"Daily Reference Periods"]
[{"$f":"+'Cover Page'!C39","v":2023},"1/2 hourly CO ELV","Monthly 1/2 hourly mean","Highest 1/2 hourly maximum","Daily CO ELV","Monthly daily mean","Highest daily maximum",null,null,{"$f":"+A9","v":2023},"mg/Nm3","Monthly 1/2 hourly mean","Monthly 1/2 hourly maximum","Monthly daily mean","Monthly daily maximum"]
["Jan",100,null,null,50,null,null,null,null,"A1","Jan"]
["Feb",{"$f":"+B10","v":100},null,null,{"$f":"+E10","v":50},null,null,null,null,null,"Feb"]
["Mar",{"$f":"+B11","v":100},null,null,{"$f":"+E11","v":50},null,null,null,null,null,"Mar",null,null,null,null,null,"Whole Installation table A5:G18:"]
["Apr",100,null,null,50,null,null,null,null,null,"Apr",null,null,null,null,null,"Mean: for 1/2 hourly and daily periods calculate mean of values across all operational combustion lines for the month"]
["May",100,null,null,50,null,null,null,null,null,"May"]
["Jun",100,null,null,50,null,null,null,null,null,"Jun"]
["Jul",100,null,null,50,null,null,null,null,null,"Jul",null,null,null,null,null,"Maximum: for 1/2 hourly and daily periods use the highest value across all operational combustion lines for the month"]
["Aug",100,null,null,50,null,null,null,null,null,"Aug"]
["Sep",100,null,null,50,null,null,null,null,null,"Sep"]
["Oct",100,null,null,50,null,null,null,null,null,"Oct"]
["Nov",100,null,null,50,null,null,null,null,null,"Nov"]
["Dec",100,null,null,50,null,null,null,null,null,"Dec"]
[null,null,null,null,null,null,null,null,null,null,"Annual",{"$f":"AVERAGE(L10:L21)","v":{"$error":"#DIV/0!"}},{"$f":"MAX(M10:M21)","v":0},{"$f":"AVERAGE(N10:N21)","v":{"$error":"#DIV/0!"}},{"$f":"MAX(O10:O21)","v":0}]
[]
[null,null,null,null,null,null,null,null,null,{"$f":"+A9","v":2023},"mg/Nm3","Monthly 1/2 hourly mean","Monthly 1/2 hourly maximum","Monthly daily mean","Monthly daily maximum"]
[null,null,null,null,null,null,null,null,null,"A2","Jan"]
[null,null,null,null,null,null,null,null,null,null,"Feb"]
[null,null,null,null,null,null,null,null,null,null,"Mar"]
[null,null,null,null,null,null,null,null,null,null,"Apr"]
[null,null,null,null,null,null,null,null,null,null,"May"]
[null,null,null,null,null,null,null,null,null,null,"Jun"]
[null,null,null,null,null,null,null,null,null,null,"Jul"]
[null,null,null,null,null,null,null,null,null,null,"Aug"]
[null,null,null,null,null,null,null,null,null,null,"Sep"]
[null,null,null,null,null,null,null,null,null,null,"Oct"]
[null,null,null,null,null,null,null,null,null,null,"Nov"]
[null,null,null,null,null,null,null,null,null,null,"Dec"]
[null,null,null,null,null,null,null,null,null,null,"Annual",{"$f":"AVERAGE(L25:L36)","v":{"$error":"#DIV/0!"}},{"$f":"MAX(M25:M36)","v":0},{"$f":"AVERAGE(N25:N36)","v":{"$error":"#DIV/0!"}},{"$f":"MAX(O25:O36)","v":0}]
[]
[null,null,null,null,null,null,null,null,null,{"$f":"+A9","v":2023},"mg/Nm3","Monthly 1/2 hourly mean","Monthly 1/2 hourly maximum","Monthly daily mean","Monthly daily maximum"]
[null,null,null,null,null,null,null,null,null,"A3","Jan"]
[null,null,null,null,null,null,null,null,null,null,"Feb"]
[null,null,null,null,null,null,null,null,null,null,"Mar"]
[null,null,null,null,null,null,null,null,null,null,"Apr"]
[null,null,null,null,null,null,null,null,null,null,"May"]
[null,null,null,null,null,null,null,null,null,null,"Jun"]
[null,null,null,null,null,null,null,null,null,null,"Jul"]
[null,null,null,null,null,null,null,null,null,null,"Aug"]
[null,null,null,null,null,null,null,null,null,null,"Sep"]
[null,null,null,null,null,null,null,null,null,null,"Oct"]
[null,null,null,null,null,null,null,null,null,null,"Nov"]
["Comments :",null,null,null,null,null,null,null,null,null,"Dec"]
[null,null,null,null,null,null,null,null,null,null,"Annual",{"$f":"AVERAGE(L40:L51)","v":{"$error":"#DIV/0!"}},{"$f":"MAX(M40:M51)","v":0},{"$f":"AVERAGE(N40:N51)","v":{"$error":"#DIV/0!"}},{"$f":"MAX(O40:O51)","v":0}]
[]
[null,null,null,null,null,null,null,null,null,{"$f":"+A9","v":2023},"mg/Nm3","Monthly 1/2 hourly mean","Monthly 1/2 hourly maximum","Monthly daily mean","Monthly daily maximum"]
[null,null,null,null,null,null,null,null,null,"A4","Jan"]
[null,null,null,null,null,null,null,null,null,null,"Feb"]
[null,null,null,null,null,null,null,null,null,null,"Mar"]
[null,null,null,null,null,null,null,null,null,null,"Apr"]
[null,null,null,null,null,null,null,null,null,null,"May"]
[null,null,null,null,null,null,null,null,null,null,"Jun"]
[null,null,null,null,null,null,null,null,null,null,"Jul"]
[null,null,null,null,null,null,null,null,null,null,"Aug"]
[null,null,null,null,null,null,null,null,null,null,"Sep"]
[null,null,null,null,null,null,null,null,null,null,"Oct"]
[null,null,null,null,null,null,null,null,null,null,"Nov"]
[null,null,null,null,null,null,null,null,null,null,"Dec"]
[null,null,null,null,null,null,null,null,null,null,"Annual",{"$f":"AVERAGE(L55:L66)","v":{"$error":"#DIV/0!"}},{"$f":"MAX(M55:M66)","v":0},{"$f":"AVERAGE(N55:N66)","v":{"$error":"#DIV/0!"}},{"$f":"MAX(O55:O66)","v":0}]
[]
[null,null,null,null,null,null,null,null,null,{"$f":"+A9","v":2023},"mg/Nm3","Monthly 1/2 hourly mean","Monthly 1/2 hourly maximum","Monthly daily mean","Monthly daily maximum"]
[null,null,null,null,null,null,null,null,null,"A5","Jan"]
[null,null,null,null,null,null,null,null,null,null,"Feb"]
[null,null,null,null,null,null,null,null,null,null,"Mar"]
[null,null,null,null,null,null,null,null,null,null,"Apr"]
[null,null,null,null,null,null,null,null,null,null,"May"]
[null,null,null,null,null,null,null,null,null,null,"Jun"]
[null,null,null,null,null,null,null,null,null,null,"Jul"]
[null,null,null,null,null,null,null,null,null,null,"Aug"]
[null,null,null,null,null,null,null,null,null,null,"Sep"]
[null,null,null,null,null,null,null,null,null,null,"Oct"]
[null,null,null,null,null,null,null,null,null,null,"Nov"]
[null,null,null,null,null,null,null,null,null,null,"Dec"]
[null,null,null,null,null,null,null,null,null,null,"Annual",{"$f":"AVERAGE(L70:L81)","v":{"$error":"#DIV/0!"}},{"$f":"MAX(M70:M81)","v":0},{"$f":"AVERAGE(N70:N81)","v":{"$error":"#DIV/0!"}},{"$f":"MAX(O70:O81)","v":0}]

{"sheet":"CO 95% 10 min","index":21,"n_rows":82,"n_cols":19,"rows_kept":82,"cut":false,"hidden":false,"merged":[[4,0,5,7],[6,18,10,20],[12,18,14,20],[15,18,18,20],[69,10,81,10],[7,1,7,4],[7,5,7,7],[7,10,7,16],[9,10,21,10],[24,10,36,10],[39,10,51,10],[50,0,50,7],[51,0,54,7],[54,10,66,10]]}
[{"$f":"+'Cover Page'!$B$29","v":"Annual Performance Report 2023"},null,null,null,{"$f":"+'Cover Page'!$B$33","v":"Tyseley Energy from Waste Plant"}]
[]
["Monitoring of Carbon Monoxide (10-minute avg)",null,null,null,"Whole Installation",null,null,"See  Notes in Cell S3",null,{"$f":"+A3","v":"Monitoring of Carbon Monoxide (10-minute avg)"},null,null,null,null,"Per Combustion Line",null,"Notes:",null,"Notes:"]
[]
["Please complete this tab for your plant if you have 10-minute average CO ELVs; otherwise, leave it blank and complete the CO 0.5 hourly tab"]
[]
[null,null,null,null,null,null,null,null,null,null,null,null,null,null,null,null,null,null,"User to add logic to complete Whole installation, Table A5:H18. From the data in Per Combustion Line, Table K6:Q79, subject to No. of lines installed"]
["mg/Nm3","10-minute Reference Periods",null,null,null,"Daily Reference Periods"]
[{"$f":"+'Cover Page'!C39","v":2023},"95%ile 10-min avg CO ELV","95%ile 10-min avg maximum","Monthly CO 10-min avg mean","10-min avg maximum","Daily CO ELV","Monthly daily mean","Highest daily maximum",null,null,{"$f":"+A9","v":2023},"mg/Nm3","95%ile 10-min avg maximum","Monthly CO 10-min avg mean","10-min avg maximum","Monthly daily mean","Monthly daily maximum"]
["Jan",150,{"$f":"MAX(M10,M25)","v":45.9},{"$f":"AVERAGE(N10,N25)","v":8.9},{"$f":"MAX(O10,O25)","v":354.1},50,{"$f":"AVERAGE(P10,P25)","v":8.6999999999999993},{"$f":"MAX(Q10,Q25)","v":21.1},null,null,"A1","Jan",45.9,10.1,354.1,10.1,21.1]
["Feb",{"$f":"+B10","v":150},{"$f":"MAX(M11,M26)","v":65.8},{"$f":"AVERAGE(N11,N26)","v":8.9},{"$f":"MAX(O11,O26)","v":290.8},{"$f":"+F10","v":50},{"$f":"AVERAGE(P11,P26)","v":8.85},{"$f":"MAX(Q11,Q26)","v":15.9},null,null,null,"Feb",65.8,10.1,244.1,10.1,15.9]
["Mar",{"$f":"+B11","v":150},57.5,9.6999999999999993,239.8,{"$f":"+F11","v":50},9.65,16.2,null,null,null,"Mar",24.9,10,176,10,16.2,null,"Whole Installation table A5:H18:"]
["Apr",150,67.8,9.8000000000000007,650.20000000000005,50,9.8000000000000007,19.5,null,null,null,"Apr",66.8,11.4,315.89999999999998,11.4,19.5,null,"Mean: for 10-min and daily periods use average of all operational combustion lines."]
["May",150,68.7,10.85,308.5,50,10.85,21.2,null,null,null,"May",68.7,12.5,308.5,12.5,21.2]
["Jun",150,80.400000000000006,14.55,266.60000000000002,50,14.350000000000001,21.7,null,null,null,"Jun",69.2,15.4,201.2,15.3,21.7]
["Jul",150,66,11.35,358.1,50,11.2,22.5,null,null,null,"Jul",66,13.1,189.9,13,22.5,null,"Maximum: for 10-min and daily periods use the highest of all operational combustion lines in any month."]
["Aug",150,117.1,12.9,606.9,50,12.5,26.3,null,null,null,"Aug",117.1,14,337.5,14,26.3]
["Sep",150,64.8,9.4,498.9,50,9.4,17.600000000000001,null,null,null,"Sep",63,10.3,486.4,10.3,17.600000000000001]
["Oct",150,65,11.65,511.1,50,11.65,18.399999999999999,null,null,null,"Oct",62.6,11.4,264.8,11.4,18.399999999999999]
["Nov",150,69.900000000000006,12,261.8,50,11.95,17.8,null,null,null,"Nov",57.4,12,261.8,11.9,16.100000000000001]
["Dec",150,67.099999999999994,11.6,437.2,50,11.4,19.7,null,null,null,"Dec",35,10.199999999999999,320.2,10,16.600000000000001]
[null,null,null,null,null,null,null,null,null,null,null,"Annual",{"$f":"AVERAGE(M10:M21)","v":61.866666666666667},{"$f":"AVERAGE(N10:N21)","v":11.708333333333334},{"$f":"MAX(O10:O21)","v":486.4},{"$f":"AVERAGE(P10:P21)","v":11.666666666666666},{"$f":"MAX(Q10:Q21)","v":26.3}]
[]
[null,null,null,null,null,null,null,null,null,null,{"$f":"+A9","v":2023},"mg/Nm3","95%ile 10-min avg maximum","Monthly CO 10-min avg mean","10-min avg maximum","Monthly daily mean","Monthly daily maximum"]
[null,null,null,null,null,null,null,null,null,null,"A2","Jan",27.2,7.7,236.6,7.3,9.6]
[null,null,null,null,null,null,null,null,null,null,null,"Feb",36.1,7.7,290.8,7.6,11.5]
[null,null,null,null,null,null,null,null,null,null,null,"Mar",57.5,9.4,239.8,9.3000000000000007,13.4]
[null,null,null,null,null,null,null,null,null,null,null,"Apr",67.8,8.1999999999999993,650.20000000000005,8.1999999999999993,15.7]
[null,null,null,null,null,null,null,null,null,null,null,"May",68.7,9.1999999999999993,268.5,9.1999999999999993,15]
[null,null,null,null,null,null,null,null,null,null,null,"Jun",80.400000000000006,13.7,266.60000000000002,13.4,19.399999999999999]
[null,null,null,null,null,null,null,null,null,null,null,"Jul",44.5,9.6,358.1,9.4,13.4]
[null,null,null,null,null,null,null,null,null,null,null,"Aug",97.8,11.8,606.9,11,16.600000000000001]
[null,null,null,null,null,null,null,null,null,null,null,"Sep",64.8,8.5,498.9,8.5,14.4]
[null,null,null,null,null,null,null,null,null,null,null,"Oct",65,11.9,511.1,11.9,17.899999999999999]
[null,null,null,null,null,null,null,null,null,null,null,"Nov",69.900000000000006,12,255.7,12,17.8]
[null,null,null,null,null,null,null,null,null,null,null,"Dec",67.099999999999994,13,437.2,12.8,19.7]
[null,null,null,null,null,null,null,null,null,null,null,"Annual",{"$f":"AVERAGE(M25:M36)","v":62.233333333333341},{"$f":"AVERAGE(N25:N36)","v":10.225},{"$f":"MAX(O25:O36)","v":650.20000000000005},{"$f":"AVERAGE(P25:P36)","v":10.049999999999999},{"$f":"MAX(Q25:Q36)","v":19.7}]
[]
[null,null,null,null,null,null,null,null,null,null,{"$f":"+A9","v":2023},"mg/Nm3","95%ile 10-min avg maximum","Monthly CO 10-min avg mean","10-min avg maximum","Monthly daily mean","Monthly daily maximum"]
[null,null,null,null,null,null,null,null,null,null,"A3","Jan"]
[null,null,null,null,null,null,null,null,null,null,null,"Feb"]
[null,null,null,null,null,null,null,null,null,null,null,"Mar"]
[null,null,null,null,null,null,null,null,null,null,null,"Apr"]
[null,null,null,null,null,null,null,null,null,null,null,"May"]
[null,null,null,null,null,null,null,null,null,null,null,"Jun"]
[null,null,null,null,null,null,null,null,null,null,null,"Jul"]
[null,null,null,null,null,null,null,null,null,null,null,"Aug"]
[null,null,null,null,null,null,null,null,null,null,null,"Sep"]
[null,null,null,null,null,null,null,null,null,null,null,"Oct"]
[null,null,null,null,null,null,null,null,null,null,null,"Nov"]
["Comments :",null,null,null,null,null,null,null,null,null,null,"Dec"]
["Environment Agency explanatory note: The 10-minute average ELV is based on the “95th percentile”. In this case this means that 95% of the 10 minute averages in the relevant 24-hour period (i.e. 137) must be below 150 mg/Nm3, and 5% (i.e. 7) are allowed to be any value above 150 mg/Nm3. Whilst we expect operators to minimise CO emissions at all times, it is perfectly acceptable for the value of the maximum 10-minute average to be above 150 mg/Nm3, provided the 95th percentile ELV has been met for that period. ",null,null,null,null,null,null,null,null,null,null,"Annual",{"$f":"AVERAGE(M40:M51)","v":{"$error":"#DIV/0!"}},null,{"$f":"MAX(O40:O51)","v":0},{"$f":"AVERAGE(P40:P51)","v":{"$error":"#DIV/0!"}},{"$f":"MAX(Q40:Q51)","v":0}]
[]
[null,null,null,null,null,null,null,null,null,null,{"$f":"+A9","v":2023},"mg/Nm3","95%ile 10-min avg maximum","Monthly CO 10-min avg mean","10-min avg maximum","Monthly daily mean","Monthly daily maximum"]
[null,null,null,null,null,null,null,null,null,null,"A4","Jan"]
[null,null,null,null,null,null,null,null,null,null,null,"Feb"]
[null,null,null,null,null,null,null,null,null,null,null,"Mar"]
[null,null,null,null,null,null,null,null,null,null,null,"Apr"]
[null,null,null,null,null,null,null,null,null,null,null,"May"]
[null,null,null,null,null,null,null,null,null,null,null,"Jun"]
[null,null,null,null,null,null,null,null,null,null,null,"Jul"]
[null,null,null,null,null,null,null,null,null,null,null,"Aug"]
[null,null,null,null,null,null,null,null,null,null,null,"Sep"]
[null,null,null,null,null,null,null,null,null,null,null,"Oct"]
[null,null,null,null,null,null,null,null,null,null,null,"Nov"]
[null,null,null,null,null,null,null,null,null,null,null,"Dec"]
[null,null,null,null,null,null,null,null,null,null,null,"Annual",{"$f":"AVERAGE(M55:M66)","v":{"$error":"#DIV/0!"}},null,{"$f":"MAX(O55:O66)","v":0},{"$f":"AVERAGE(P55:P66)","v":{"$error":"#DIV/0!"}},{"$f":"MAX(Q55:Q66)","v":0}]
[]
[null,null,null,null,null,null,null,null,null,null,{"$f":"+A9","v":2023},"mg/Nm3","95%ile 10-min avg maximum","Monthly CO 10-min avg mean","10-min avg maximum","Monthly daily mean","Monthly daily maximum"]
[null,null,null,null,null,null,null,null,null,null,"A5","Jan"]
[null,null,null,null,null,null,null,null,null,null,null,"Feb"]
[null,null,null,null,null,null,null,null,null,null,null,"Mar"]
[null,null,null,null,null,null,null,null,null,null,null,"Apr"]
[null,null,null,null,null,null,null,null,null,null,null,"May"]
[null,null,null,null,null,null,null,null,null,null,null,"Jun"]
[null,null,null,null,null,null,null,null,null,null,null,"Jul"]
[null,null,null,null,null,null,null,null,null,null,null,"Aug"]
[null,null,null,null,null,null,null,null,null,null,null,"Sep"]
[null,null,null,null,null,null,null,null,null,null,null,"Oct"]
[null,null,null,null,null,null,null,null,null,null,null,"Nov"]
[null,null,null,null,null,null,null,null,null,null,null,"Dec"]
[null,null,null,null,null,null,null,null,null,null,null,"Annual",{"$f":"AVERAGE(M70:M81)","v":{"$error":"#DIV/0!"}},null,{"$f":"MAX(O70:O81)","v":0},{"$f":"AVERAGE(P70:P81)","v":{"$error":"#DIV/0!"}},{"$f":"MAX(Q70:Q81)","v":0}]

{"sheet":"NH3","index":22,"n_rows":81,"n_cols":17,"rows_kept":81,"cut":false,"hidden":false,"merged":[[3,16,7,18],[9,16,11,18],[12,16,15,18],[68,9,80,9],[4,1,4,3],[4,4,4,6],[4,9,4,14],[6,9,18,9],[22,9,34,9],[38,9,50,9],[49,0,49,6],[50,0,53,6],[53,9,65,9],[18,4,18,6]]}
[{"$f":"+'Cover Page'!$B$29","v":"Annual Performance Report 2023"},null,null,null,{"$f":"+'Cover Page'!$B$33","v":"Tyseley Energy from Waste Plant"}]
[]
["Monitoring of Ammnonia emissions ",null,null,"Whole Installation",null,null,"See  Notes in Cell Q3",null,null,{"$f":"+A3","v":"Monitoring of Ammnonia emissions "},null,null,null,"Per Combustion Line",null,null,"Notes:"]
[null,null,null,null,null,null,null,null,null,null,null,null,null,null,null,null,"User to add logic to complete Whole installation, Table A5:G18. From the data in Per Combustion Line, Table J6:O79, subject to No. of lines installed"]
["mg/Nm3","1/2 Hourly Reference Periods",null,null,"Daily Reference Periods"]
[{"$f":"+'Cover Page'!C39","v":2023},"1/2 hourly NH3 ELV","Monthly 1/2 hourly mean","Highest 1/2 hourly maximum","Daily NH3 ELV*","Monthly daily mean","Highest daily maximum",null,null,{"$f":"+A6","v":2023},"mg/Nm3","Monthly 1/2 hourly mean","Monthly 1/2 hourly maximum","Monthly daily mean","Monthly daily maximum"]
["Jan","None",{"$f":"AVERAGE(L7,L23)","v":1.05},{"$f":"MAX(M7,M23)","v":12.8},"None",{"$f":"AVERAGE(N7,N23)","v":1.05},{"$f":"MAX(O7,O23)","v":1.8},null,null,"A1","Jan",0.9,6.5,0.9,1.8]
["Feb",{"$f":"+B7","v":"None"},0.9,10,"None",0.9,1.7,null,null,null,"Feb",0.8,10,0.8,1.7]
["Mar",{"$f":"+B8","v":"None"},1.1000000000000001,22.5,"None",1.05,3.6,null,null,null,"Mar",1,22.5,1,3.6,null,"Whole Installation table A5:G18:"]
["Apr","None",1.1499999999999999,17.100000000000001,"None",1.1000000000000001,2.2999999999999998,null,null,null,"Apr",1.1000000000000001,14.7,1.1000000000000001,2.2999999999999998,null,"Mean: for 1/2 hourly and daily periods calculate mean of values across all operational combustion lines for the month"]
["May","None",1.05,11.8,"None",1,2.2999999999999998,null,null,null,"May",1.1000000000000001,11.8,1,2.2999999999999998]
["Jun","None",7.9,53.4,"None",8,24.7,null,null,null,"Jun",8.4,41,7.9,11.5]
["Jul","None",3,34.4,"None",2.9,5.7,null,null,null,"Jul",2.5,16.399999999999999,2.4,4.9000000000000004,null,"Maximum: for 1/2 hourly and daily periods use the highest value across all operational combustion lines for the month"]
["Aug","None",2.4,22.6,"None",2.2999999999999998,6.3,null,null,null,"Aug",2.4,22.6,2.4,6.3]
["Sep","None",1.35,10.1,"None",1.3,2.2999999999999998,null,null,null,"Sep",1.3,8.9,1.3,2.2999999999999998]
["Oct","None",1.6,17.2,"None",1.6,3.7,null,null,null,"Oct",1.4,10.199999999999999,1.4,2.5]
["Nov","None",1.65,15.3,"None",1.65,4.4000000000000004,null,null,null,"Nov",1.7,15.3,1.7,4.4000000000000004]
["Dec","None",1.7999999999999998,14.2,15,1.7000000000000002,4.5999999999999996,null,null,null,"Dec",1.7,12.2,1.6,4.5]
[null,null,null,null,"* ELV came into force on 3 December 2023",null,null,null,null,null,"Annual",{"$f":"AVERAGE(L7:L18)","v":2.0249999999999999},{"$f":"MAX(M7:M18)","v":41},{"$f":"AVERAGE(N7:N18)","v":1.9583333333333333},{"$f":"MAX(O7:O18)","v":11.5}]
[null,null,null,null,null,null,null,null,null,null,"Dec",1.7,12.2,1.6,4.5]
[]
[null,null,null,null,null,null,null,null,null,{"$f":"+A6","v":2023},"mg/Nm3","Monthly 1/2 hourly mean","Monthly 1/2 hourly maximum","Monthly daily mean","Monthly daily maximum"]
[null,null,null,null,null,null,null,null,null,"A2","Jan",1.2,12.8,1.2,1.8]
[null,null,null,null,null,null,null,null,null,null,"Feb",1,5.0999999999999996,1,1.4]
[null,null,null,null,null,null,null,null,null,null,"Mar",1.2,9.8000000000000007,1.1000000000000001,2.2999999999999998]
[null,null,null,null,null,null,null,null,null,null,"Apr",1.2,17.100000000000001,1.1000000000000001,2.2999999999999998]
[null,null,null,null,null,null,null,null,null,null,"May",1,6.3,1,1.5]
[null,null,null,null,null,null,null,null,null,null,"Jun",7.4,53.4,8.1,24.7]
[null,null,null,null,null,null,null,null,null,null,"Jul",3.5,34.4,3.4,5.7]
[null,null,null,null,null,null,null,null,null,null,"Aug",2.4,18.600000000000001,2.2000000000000002,4.7]
[null,null,null,null,null,null,null,null,null,null,"Sep",1.4,10.1,1.3,2.2999999999999998]
[null,null,null,null,null,null,null,null,null,null,"Oct",1.8,17.2,1.8,3.7]
[null,null,null,null,null,null,null,null,null,null,"Nov",1.6,12.8,1.6,2.7]
[null,null,null,null,null,null,null,null,null,null,"Dec",1.9,14.2,1.8,4.5999999999999996]
[null,null,null,null,null,null,null,null,null,null,"Annual",{"$f":"AVERAGE(L23:L34)","v":2.1333333333333333},{"$f":"MAX(M23:M34)","v":53.4},{"$f":"AVERAGE(N23:N34)","v":2.1333333333333333},{"$f":"MAX(O23:O34)","v":24.7}]
[null,null,null,null,null,null,null,null,null,null,"Dec",1.9,14.2,1.8,4.5999999999999996]
[]
[null,null,null,null,null,null,null,null,null,{"$f":"+A6","v":2023},"mg/Nm3","Monthly 1/2 hourly mean","Monthly 1/2 hourly maximum","Monthly daily mean","Monthly daily maximum"]
[null,null,null,null,null,null,null,null,null,"A3","Jan"]
[null,null,null,null,null,null,null,null,null,null,"Feb"]
[null,null,null,null,null,null,null,null,null,null,"Mar"]
[null,null,null,null,null,null,null,null,null,null,"Apr"]
[null,null,null,null,null,null,null,null,null,null,"May"]
[null,null,null,null,null,null,null,null,null,null,"Jun"]
[null,null,null,null,null,null,null,null,null,null,"Jul"]
[null,null,null,null,null,null,null,null,null,null,"Aug"]
[null,null,null,null,null,null,null,null,null,null,"Sep"]
[null,null,null,null,null,null,null,null,null,null,"Oct"]
[null,null,null,null,null,null,null,null,null,null,"Nov"]
["Comments :",null,null,null,null,null,null,null,null,null,"Dec"]
["An indicated ELV value of zero in the table above means that no ammonia limit is/was set in the permit.  ",null,null,null,null,null,null,null,null,null,"Annual",{"$f":"AVERAGE(L39:L50)","v":{"$error":"#DIV/0!"}},{"$f":"MAX(M39:M50)","v":0},{"$f":"AVERAGE(N39:N50)","v":{"$error":"#DIV/0!"}},{"$f":"MAX(O39:O50)","v":0}]
[]
[null,null,null,null,null,null,null,null,null,{"$f":"+A6","v":2023},"mg/Nm3","Monthly 1/2 hourly mean","Monthly 1/2 hourly maximum","Monthly daily mean","Monthly daily maximum"]
[null,null,null,null,null,null,null,null,null,"A4","Jan"]
[null,null,null,null,null,null,null,null,null,null,"Feb"]
[null,null,null,null,null,null,null,null,null,null,"Mar"]
[null,null,null,null,null,null,null,null,null,null,"Apr"]
[null,null,null,null,null,null,null,null,null,null,"May"]
[null,null,null,null,null,null,null,null,null,null,"Jun"]
[null,null,null,null,null,null,null,null,null,null,"Jul"]
[null,null,null,null,null,null,null,null,null,null,"Aug"]
[null,null,null,null,null,null,null,null,null,null,"Sep"]
[null,null,null,null,null,null,null,null,null,null,"Oct"]
[null,null,null,null,null,null,null,null,null,null,"Nov"]
[null,null,null,null,null,null,null,null,null,null,"Dec"]
[null,null,null,null,null,null,null,null,null,null,"Annual",{"$f":"AVERAGE(L54:L65)","v":{"$error":"#DIV/0!"}},{"$f":"MAX(M54:M65)","v":0},{"$f":"AVERAGE(N54:N65)","v":{"$error":"#DIV/0!"}},{"$f":"MAX(O54:O65)","v":0}]
[]
[null,null,null,null,null,null,null,null,null,{"$f":"+A6","v":2023},"mg/Nm3","Monthly 1/2 hourly mean","Monthly 1/2 hourly maximum","Monthly daily mean","Monthly daily maximum"]
[null,null,null,null,null,null,null,null,null,"A5","Jan"]
[null,null,null,null,null,null,null,null,null,null,"Feb"]
[null,null,null,null,null,null,null,null,null,null,"Mar"]
[null,null,null,null,null,null,null,null,null,null,"Apr"]
[null,null,null,null,null,null,null,null,null,null,"May"]
[null,null,null,null,null,null,null,null,null,null,"Jun"]
[null,null,null,null,null,null,null,null,null,null,"Jul"]
[null,null,null,null,null,null,null,null,null,null,"Aug"]
[null,null,null,null,null,null,null,null,null,null,"Sep"]
[null,null,null,null,null,null,null,null,null,null,"Oct"]
[null,null,null,null,null,null,null,null,null,null,"Nov"]
[null,null,null,null,null,null,null,null,null,null,"Dec"]
[null,null,null,null,null,null,null,null,null,null,"Annual",{"$f":"AVERAGE(L69:L80)","v":{"$error":"#DIV/0!"}},{"$f":"MAX(M69:M80)","v":0},{"$f":"AVERAGE(N69:N80)","v":{"$error":"#DIV/0!"}},{"$f":"MAX(O69:O80)","v":0}]